Workbook

Sheet Lista (hidden)
A2: 10010001 | B2: SKUPŠTINA ŽUPANIJE POSAVSKE | I2: 1. mjesec | J2: I. kvartal | K2: Siječanj 2018. god.
A3: 11010001 | B3: VLADA ŽUPANIJE POSAVSKE | I3: 2. mjesec | J3: I. kvartal | K3: Veljača 2018. god.
A4: 11010002 | B4: URED ZA RASELJENE | I4: 3. mjesec | J4: I. kvartal | K4: Ožujak 2018. god.
A5: 11010003 | B5: URED ZA ZAKONODAVSTVO | I5: 4. mjesec | J5: II. kvartal | K5: Travanj 2018. god.
A6: 11010004 | B6: SLUŽBA ZA ODNOSE S JAVNOŠĆU | I6: 5. mjesec | J6: II. kvartal | K6: Svibanj 2018. god.
A7: 11010005 | B7: URED ZA RAZVOJ I EUROPSKE INTEGRACIJE | I7: 6. mjesec | J7: II. kvartal | K7: Lipanj 2018. god.
A8: 12010001 | B8: ZAJEDNIČKA SLUŽBA VLADE | I8: 7. mjesec | J8: III. kvartal | K8: Srpanj 2018. god.
A9: 13010001 | B9: MINISTARSTVO UNUTARNJIH POSLOVA | I9: 8. mjesec | J9: III. kvartal | K9: Kolovoz 2018. god.
A10: 14010001 | B10: MINISTARSTVO PRAVOSUĐA I UPRAVE | I10: 9. mjesec | J10: III. kvartal | K10: Rujan 2018. god.
A11: 14020003 | B11: OPĆINSKI SUD ORAŠJE | I11: 10. mjesec | J11: IV. kvartal | K11: Listopad 2018. god.
A12: 14050001 | B12: OPĆINSKO PRAVOBRANITELJSTVO ORAŠJE | I12: 11. mjesec | J12: IV. kvartal | K12: Studeni 2018. god.
A13: 14050002 | B13: OPĆINSKO PRAVOBRANITELJSTVO ODŽAK | I13: 12. mjesec | J13: IV. kvartal | K13: Prosinac 2018. god.
A14: 14060001 | B14: ZAVOD ZA PRUŽANJE PRAVNE POMOĆI
A15: 15010001 | B15: MINISTARSTVO GOSPODARSTVA I PROSTORNOG UREĐENJA
A16: 16010001 | B16: MINISTARSTVO FINANCIJA
A17: 17010001 | B17: MINISTARSTVO ZDRAVSTVA, RADA I SOCIJALNE POLITIKE
A18: 18010001 | B18: MINISTARSTVO PROMETA, VEZA, TURIZMA I ZAŠTITE OKOLIŠA
A19: 19010001 | B19: MINISTARSTVO POLJOPRIVREDE, VODOPRIVREDE I ŠUMARSTVA
A20: 20010001 | B20: MINISTARSTVO PROSVJETE, ZNANOSTI, KULTURE I ŠPORTA
A21: 20020002 | B21: SREDNJA ŠKOLA PERE ZEČEVIĆA ODŽAK
A22: 20020003 | B22: ŠKOLSKI CENTAR FRA MARTINA NEDIĆA ORAŠJE
A23: 20020004 | B23: SREDNJA STRUKOVNA ŠKOLA ORAŠJE
A24: 20030001 | B24: OSNOVNA ŠKOLA ORAŠJE
A25: 20030002 | B25: OSNOVNA ŠKOLA VLADIMIRA NAZORA ODŽAK
A26: 20030003 | B26: OSNOVNA ŠKOLA RUĐERA BOŠKOVIĆA DONJA MAHALA
A27: 20030004 | B27: OSNOVNA ŠKOLA FRA ILIJE STARČEVIĆA TOLISA
A28: 20030005 | B28: OSNOVNAŠKOLA STJEPANA RADIĆA O.LUKA-BOK
A29: 20030006 | B29: OSNOVNA ŠKOLA A.G.MATOŠA VIDOVICE
A30: 20030007 | B30: OSNOVNA ŠKOLA BRAĆE RADIĆA DOMALJEVAC
A31: 21010001 | B31: MINISTARSTVO BRANITELJA
A32: 22010001 | B32: AGENCIJA ZA PRIVATIZACIJU
A33: 23010001 | B33: UPRAVA ZA CIVILNU ZAŠTITU
A34: 24010001 | B34: KANTONALNI SUD ODŽAK
A35: 26010001 | B35: ŽUPANIJSKO PRAVOBRANITELJSTVO
A36: 27010001 | B36: KANTONALNO TUŽITELJSTVO
A37: 28010001 | B37: ŽUPANIJSKA UPRAVA ZA INSPEKCIJSKE POSLOVE

Sheet Godišnji
A1: PRIJEDLOG GODIŠNJEG OPERATIVNOG PLANA RASHODA I IZDATAKA ZA 2018. GODINU
G2: =E4 -> 10010001
A3: Proračunski korisnik: | E3: =INDEX(Lista!A:B,MATCH($E$4,Lista!A:A,0),2) -> SKUPŠTINA ŽUPANIJE POSAVSKE
A4: Organizacijski kod: | E4: 10010001
A6: Razdjel | B6: Glava | C6: Potroš. jedinica | D6: Funkc. klasifikac. | E6: Ekonom. kod | F6: Opis | H6: Proračun za 2018. godinu | K6: I. kvartal 2018. god. | N6: II. kvartal 2018. god. | Q6: III. kvartal 2018. god. | T6: IV. kvartal 2018. god. | W6: Ukupno za 2018. god.
G7: Rashodi i | H7: Rashodi iz | I7: Ukupni | J7: Rashodi i | K7: Rashodi iz | L7: Ukupni | M7: Rashodi i | N7: Rashodi iz | O7: Ukupni | P7: Rashodi i | Q7: Rashodi iz | R7: Ukupni | S7: Rashodi i | T7: Rashodi iz | U7: Ukupni | V7: Rashodi i | W7: Rashodi iz | X7: Ukupni
G8: izdaci iz | H8: namj.sr., | I8: rashodi i | J8: izdaci iz | K8: namj.sr., | L8: rashodi i | M8: izdaci iz | N8: namj.sr., | O8: rashodi i | P8: izdaci iz | Q8: namj.sr., | R8: rashodi i | S8: izdaci iz | T8: namj.sr., | U8: rashodi i | V8: izdaci iz | W8: namj.sr., | X8: rashodi i
G9: proračuna | H9: tek. trans. i don. | I9: izdaci | J9: proračuna | K9: tek. trans. i don. | L9: izdaci | M9: proračuna | N9: tek. trans. i don. | O9: izdaci | P9: proračuna | Q9: tek. trans. i don. | R9: izdaci | S9: proračuna | T9: tek. trans. i don. | U9: izdaci | V9: proračuna | W9: tek. trans. i don. | X9: izdaci
A10: 1 | B10: 2 | C10: 3 | E10: 4 | F10: 5 | G10: 6 | H10: 7 | I10: 8 | J10: 9 | K10: 10 | L10: 11 | M10: 12 | N10: 13 | O10: 14 | P10: 15 | Q10: 16 | R10: 17 | S10: 18 | T10: 19 | U10: 20 | V10: 21 | W10: 22 | X10: 23
A11: 10 | B11: 01 | C11: 0001 | F11: SKUPŠTINA ŽUPANIJE POSAVSKE
E12: 611000 | F12: Plaće i naknade troškova zaposlenih | G12: =SUM(G13:G15) -> 449460 | H12: =SUM(H13:H15) -> 0 | I12: 449460 | J12: 0 | K12: 0 | L12: 0 | M12: 0 | N12: 0 | O12: 0 | P12: 0 | Q12: 0 | R12: 0 | S12: 0 | T12: 0 | U12: 0 | V12: 0 | W12: 0 | X12: 0 | Y12: =IF(OR(V12>G12, W12>H12),"Ukupni operativni plan je veći od Proračuna!","") -> 
E13: 611100 | F13: Bruto plaće i naknade | G13: 370430 | H13: 0 | I13: =SUM(G13:H13) -> 370430 | L13: =SUM(J13:K13) -> 0 | O13: =SUM(M13:N13) -> 0 | R13: =SUM(P13:Q13) -> 0 | U13: =SUM(S13:T13) -> 0 | V13: =S13+P13+M13+J13 -> 0 | W13: =T13+Q13+N13+K13 -> 0 | X13: =SUM(V13:W13) -> 0
E14: 611200 | F14: Naknade troškova zaposlenih | G14: 79030 | H14: 0 | I14: =SUM(G14:H14) -> 79030 | L14: =SUM(J14:K14) -> 0 | O14: =SUM(M14:N14) -> 0 | R14: =SUM(P14:Q14) -> 0 | U14: =SUM(S14:T14) -> 0 | V14: =S14+P14+M14+J14 -> 0 | W14: 0 | X14: =SUM(V14:W14) -> 0
E15: 611200 | F15: Naknade troškova zaposlenih - volonteri | G15: 0 | H15: 0 | I15: 0 | L15: 0 | O15: 0 | R15: 0 | U15: 0 | V15: 0 | W15: 0 | X15: 0
E16: 612000 | F16: Doprinosi poslodavca | G16: =G17 -> 39650 | H16: =H17 -> 0 | I16: 39650 | J16: 0 | K16: 0 | L16: 0 | M16: 0 | N16: 0 | O16: 0 | P16: 0 | Q16: 0 | R16: 0 | S16: 0 | T16: 0 | U16: 0 | V16: 0 | W16: 0 | X16: 0
E17: 612100 | F17: Doprinosi poslodavca | G17: 39650 | H17: 0 | I17: =SUM(G17:H17) -> 39650 | L17: =SUM(J17:K17) -> 0 | O17: =SUM(M17:N17) -> 0 | R17: =SUM(P17:Q17) -> 0 | U17: =SUM(S17:T17) -> 0 | V17: 0 | W17: 0 | X17: =SUM(V17:W17) -> 0
E18: 613000 | F18: Izdaci za materijal, sitan inventar i usluge | G18: =SUM(G19:G28) -> 278400 | H18: =SUM(H19:H28) -> 0 | I18: 278400 | J18: 0 | K18: 0 | L18: 0 | M18: 0 | N18: 0 | O18: 0 | P18: 0 | Q18: 0 | R18: 0 | S18: 0 | T18: 0 | U18: 0 | V18: 0 | W18: 0 | X18: 0
E19: 613100 | F19: Putni troškovi | G19: 6500 | H19: 0 | I19: =SUM(G19:H19) -> 6500 | L19: =SUM(J19:K19) -> 0 | O19: =SUM(M19:N19) -> 0 | R19: =SUM(P19:Q19) -> 0 | U19: =SUM(S19:T19) -> 0 | V19: 0 | W19: 0 | X19: =SUM(V19:W19) -> 0
E20: 613200 | F20: Izdaci za energiju | G20: 13600 | H20: 0 | I20: 13600 | L20: 0 | O20: 0 | R20: 0 | U20: 0 | V20: 0 | W20: 0 | X20: 0
E21: 613300 | F21: Izdaci za komunikaciju i komunalne usluge | G21: 7300 | H21: 0 | I21: 7300 | L21: 0 | O21: 0 | R21: 0 | U21: 0 | V21: 0 | W21: 0 | X21: 0
E22: 613400 | F22: Nabava materijala i sitnog inventara | G22: 5500 | H22: 0 | I22: 5500 | L22: 0 | O22: 0 | R22: 0 | U22: 0 | V22: 0 | W22: 0 | X22: 0
E23: 613500 | F23: Izdaci za usluge prijevoza i goriva | G23: 10000 | H23: 0 | I23: 10000 | L23: 0 | O23: 0 | R23: 0 | U23: 0 | V23: 0 | W23: 0 | X23: 0
E24: 613600 | F24: Unajmljivanje imovine, opreme i nemat.imovine | G24: 0 | H24: 0 | I24: 0 | L24: 0 | O24: 0 | R24: 0 | U24: 0 | V24: 0 | W24: 0 | X24: 0
E25: 613700 | F25: Izdaci za tekuće održavanje | G25: 8000 | H25: 0 | I25: 8000 | L25: 0 | O25: 0 | R25: 0 | U25: 0 | V25: 0 | W25: 0 | X25: 0
E26: 613800 | F26: Izdaci osiguranja, bank.usluga i usluga PP | G26: 2500 | H26: 0 | I26: 2500 | L26: 0 | O26: 0 | R26: 0 | U26: 0 | V26: 0 | W26: 0 | X26: 0
E27: 613900 | F27: Ugovorene i druge posebne usluge | G27: 225000 | H27: 0 | I27: 225000 | L27: 0 | O27: 0 | R27: 0 | U27: 0 | V27: 0 | W27: 0 | X27: 0
E28: 613900 | F28: Ugovorene i druge posebne usluge - volonteri | G28: 0 | H28: 0 | I28: 0 | L28: 0 | O28: 0 | R28: 0 | U28: 0 | V28: 0 | W28: 0 | X28: 0
E29: 821000 | F29: Izdaci za nabavku stalnih sredstava | G29: =SUM(G30:G31) -> 10000 | H29: =SUM(H30:H31) -> 0 | I29: 10000 | J29: 0 | K29: 0 | L29: 0 | M29: 0 | N29: 0 | O29: 0 | P29: 0 | Q29: 0 | R29: 0 | S29: 0 | T29: 0 | U29: 0 | V29: 0 | W29: 0 | X29: 0
E30: 821200 | F30: Nabavka građevina | G30: 5000 | H30: 0 | I30: =SUM(G30:H30) -> 5000 | L30: =SUM(J30:K30) -> 0 | O30: =SUM(M30:N30) -> 0 | R30: =SUM(P30:Q30) -> 0 | U30: =SUM(S30:T30) -> 0 | V30: 0 | W30: 0 | X30: =SUM(V30:W30) -> 0
E31: 821300 | F31: Nabavka opreme | G31: 5000 | H31: 0 | I31: =SUM(G31:H31) -> 5000 | L31: =SUM(J31:K31) -> 0 | O31: =SUM(M31:N31) -> 0 | R31: =SUM(P31:Q31) -> 0 | U31: =SUM(S31:T31) -> 0 | V31: 0 | W31: 0 | X31: =SUM(V31:W31) -> 0
F32: Ukupno za korisnika Skupština Županije Posavske | G32: =G12+G16+G18+G29 -> 777510 | H32: =H12+H16+H18+H29 -> 0 | I32: 777510 | J32: 0 | K32: 0 | L32: 0 | M32: 0 | N32: 0 | O32: 0 | P32: 0 | Q32: 0 | R32: 0 | S32: 0 | T32: 0 | U32: 0 | V32: 0 | W32: 0 | X32: 0
A34: 10 | B34: 01 | C34: 0002 | F34: STRUČNA SLUŽBA SKUPŠTINE
E35: 611000 | F35: Plaće i naknade troškova zaposlenih | G35: =SUM(G36:G38) -> 57480 | H35: =SUM(H36:H38) -> 0 | I35: =SUM(I36:I38) -> 57480 | J35: =SUM(J36:J38) -> 0 | K35: =SUM(K36:K38) -> 0 | L35: =SUM(L36:L38) -> 0 | M35: =SUM(M36:M38) -> 0 | N35: =SUM(N36:N38) -> 0 | O35: =SUM(O36:O38) -> 0 | P35: =SUM(P36:P38) -> 0 | Q35: =SUM(Q36:Q38) -> 0 | R35: =SUM(R36:R38) -> 0 | S35: =SUM(S36:S38) -> 0 | T35: =SUM(T36:T38) -> 0 | U35: =SUM(U36:U38) -> 0 | V35: =SUM(V36:V38) -> 0 | W35: =SUM(W36:W38) -> 0 | X35: =SUM(X36:X38) -> 0 | Y35: =IF(OR(V35>G35, W35>H35),"Ukupni operativni plan je veći od Proračuna!","") -> 
E36: 611100 | F36: Bruto plaće i naknade | G36: 44680 | H36: 0 | I36: =SUM(G36:H36) -> 44680 | L36: =SUM(J36:K36) -> 0 | O36: =SUM(M36:N36) -> 0 | R36: =SUM(P36:Q36) -> 0 | U36: =SUM(S36:T36) -> 0 | V36: =S36+P36+M36+J36 -> 0 | W36: =T36+Q36+N36+K36 -> 0 | X36: =SUM(V36:W36) -> 0
E37: 611200 | F37: Naknade troškova zaposlenih | G37: 12800 | H37: 0 | I37: =SUM(G37:H37) -> 12800 | L37: =SUM(J37:K37) -> 0 | O37: =SUM(M37:N37) -> 0 | R37: =SUM(P37:Q37) -> 0 | U37: =SUM(S37:T37) -> 0 | V37: =S37+P37+M37+J37 -> 0 | W37: 0 | X37: =SUM(V37:W37) -> 0
E38: 611200 | F38: Naknade troškova zaposlenih - volonteri | G38: 0 | H38: 0 | I38: 0 | L38: 0 | O38: 0 | R38: 0 | U38: 0 | V38: 0 | W38: 0 | X38: 0
E39: 612000 | F39: Doprinosi poslodavca | G39: =G40 -> 5030 | H39: =H40 -> 0 | I39: =I40 -> 5030 | J39: =J40 -> 0 | K39: =K40 -> 0 | L39: =L40 -> 0 | M39: =M40 -> 0 | N39: =N40 -> 0 | O39: =O40 -> 0 | P39: =P40 -> 0 | Q39: =Q40 -> 0 | R39: =R40 -> 0 | S39: =S40 -> 0 | T39: =T40 -> 0 | U39: =U40 -> 0 | V39: =V40 -> 0 | W39: =W40 -> 0 | X39: =X40 -> 0
E40: 612100 | F40: Doprinosi poslodavca | G40: 5030 | H40: 0 | I40: =SUM(G40:H40) -> 5030 | L40: =SUM(J40:K40) -> 0 | O40: =SUM(M40:N40) -> 0 | R40: =SUM(P40:Q40) -> 0 | U40: =SUM(S40:T40) -> 0 | V40: =S40+P40+M40+J40 -> 0 | W40: =T40+Q40+N40+K40 -> 0 | X40: =SUM(V40:W40) -> 0
E41: 613000 | F41: Izdaci za materijal, sitan inventar i usluge | G41: =SUM(G42:G51) -> 1050 | H41: =SUM(H42:H51) -> 0 | I41: =SUM(I42:I51) -> 1050 | J41: =SUM(J42:J51) -> 0 | K41: =SUM(K42:K51) -> 0 | L41: =SUM(L42:L51) -> 0 | M41: =SUM(M42:M51) -> 0 | N41: =SUM(N42:N51) -> 0 | O41: =SUM(O42:O51) -> 0 | P41: =SUM(P42:P51) -> 0 | Q41: =SUM(Q42:Q51) -> 0 | R41: =SUM(R42:R51) -> 0 | S41: =SUM(S42:S51) -> 0 | T41: =SUM(T42:T51) -> 0 | U41: =SUM(U42:U51) -> 0 | V41: =SUM(V42:V51) -> 0 | W41: =SUM(W42:W51) -> 0 | X41: =SUM(X42:X51) -> 0
E42: 613100 | F42: Putni troškovi | G42: 500 | H42: 0 | I42: =SUM(G42:H42) -> 500 | L42: =SUM(J42:K42) -> 0 | O42: =SUM(M42:N42) -> 0 | R42: =SUM(P42:Q42) -> 0 | U42: =SUM(S42:T42) -> 0 | V42: =S42+P42+M42+J42 -> 0 | W42: =T42+Q42+N42+K42 -> 0 | X42: =SUM(V42:W42) -> 0
E43: 613200 | F43: Izdaci za energiju | G43: 0 | H43: 0 | I43: 0 | L43: 0 | O43: 0 | R43: 0 | U43: 0 | V43: 0 | W43: 0 | X43: 0
E44: 613300 | F44: Izdaci za komunikaciju i komunalne usluge | G44: 0 | H44: 0 | I44: 0 | L44: 0 | O44: 0 | R44: 0 | U44: 0 | V44: 0 | W44: 0 | X44: 0
E45: 613400 | F45: Nabava materijala i sitnog inventara | G45: 0 | H45: 0 | I45: 0 | L45: 0 | O45: 0 | R45: 0 | U45: 0 | V45: 0 | W45: 0 | X45: 0
E46: 613500 | F46: Izdaci za usluge prijevoza i goriva | G46: 0 | H46: 0 | I46: 0 | L46: 0 | O46: 0 | R46: 0 | U46: 0 | V46: 0 | W46: 0 | X46: 0
E47: 613600 | F47: Unajmljivanje imovine, opreme i nemat.imovine | G47: 0 | H47: 0 | I47: 0 | L47: 0 | O47: 0 | R47: 0 | U47: 0 | V47: 0 | W47: 0 | X47: 0
E48: 613700 | F48: Izdaci za tekuće održavanje | G48: 0 | H48: 0 | I48: 0 | L48: 0 | O48: 0 | R48: 0 | U48: 0 | V48: 0 | W48: 0 | X48: 0
E49: 613800 | F49: Izdaci osiguranja, bank.usluga i usluga PP | G49: 0 | H49: 0 | I49: 0 | L49: 0 | O49: 0 | R49: 0 | U49: 0 | V49: 0 | W49: 0 | X49: 0
E50: 613900 | F50: Ugovorene i druge posebne usluge | G50: 550 | H50: 0 | I50: 550 | L50: 0 | O50: 0 | R50: 0 | U50: 0 | V50: 0 | W50: 0 | X50: 0
E51: 613900 | F51: Ugovorene i druge posebne usluge - volonteri | G51: 0 | H51: 0 | I51: 0 | L51: 0 | O51: 0 | R51: 0 | U51: 0 | V51: 0 | W51: 0 | X51: 0
E52: 821000 | F52: Izdaci za nabavku stalnih sredstava | G52: =SUM(G53:G54) -> 0 | H52: =SUM(H53:H54) -> 0 | I52: =SUM(I53:I54) -> 0 | J52: =SUM(J53:J54) -> 0 | K52: =SUM(K53:K54) -> 0 | L52: =SUM(L53:L54) -> 0 | M52: =SUM(M53:M54) -> 0 | N52: =SUM(N53:N54) -> 0 | O52: =SUM(O53:O54) -> 0 | P52: =SUM(P53:P54) -> 0 | Q52: =SUM(Q53:Q54) -> 0 | R52: =SUM(R53:R54) -> 0 | S52: =SUM(S53:S54) -> 0 | T52: =SUM(T53:T54) -> 0 | U52: =SUM(U53:U54) -> 0 | V52: =SUM(V53:V54) -> 0 | W52: =SUM(W53:W54) -> 0 | X52: =SUM(X53:X54) -> 0
E53: 821200 | F53: Nabavka građevina | G53: 0 | H53: 0 | I53: =SUM(G53:H53) -> 0 | L53: =SUM(J53:K53) -> 0 | O53: =SUM(M53:N53) -> 0 | R53: =SUM(P53:Q53) -> 0 | U53: =SUM(S53:T53) -> 0 | V53: =S53+P53+M53+J53 -> 0 | W53: =T53+Q53+N53+K53 -> 0 | X53: =SUM(V53:W53) -> 0
E54: 821300 | F54: Nabavka opreme | G54: 0 | H54: 0 | I54: =SUM(G54:H54) -> 0 | L54: =SUM(J54:K54) -> 0 | O54: =SUM(M54:N54) -> 0 | R54: =SUM(P54:Q54) -> 0 | U54: =SUM(S54:T54) -> 0 | V54: 0 | W54: 0 | X54: =SUM(V54:W54) -> 0
F55: Ukupno za korisnika Stručna služba Skupštine | G55: =G35+G39+G41+G52 -> 63560 | H55: =H35+H39+H41+H52 -> 0 | I55: 63560 | J55: 0 | K55: 0 | L55: 0 | M55: 0 | N55: 0 | O55: 0 | P55: 0 | Q55: 0 | R55: 0 | S55: 0 | T55: 0 | U55: 0 | V55: 0 | W55: 0 | X55: 0
A57: 11 | B57: 01 | C57: 0001 | F57: VLADA ŽUPANIJE POSAVSKE
E58: 600000 | F58: Rashodi - tekuća pričuva | G58: =SUM(G59:G61) -> 645000 | H58: =SUM(H59:H61) -> 0 | I58: =SUM(I59:I61) -> 645000 | J58: 0 | K58: 0 | L58: 0 | M58: 0 | N58: 0 | O58: 0 | P58: 0 | Q58: 0 | R58: 0 | S58: 0 | T58: 0 | U58: 0 | V58: 0 | W58: 0 | X58: 0 | Y58: =IF(OR(V58>G58, W58>H58),"Ukupni operativni plan je veći od Proračuna!","") -> 
E59: 600000 | F59: Tekuća pričuva Vlade | G59: 600000 | H59: 0 | I59: =SUM(G59:H59) -> 600000 | L59: =SUM(J59:K59) -> 0 | O59: =SUM(M59:N59) -> 0 | R59: =SUM(P59:Q59) -> 0 | U59: =SUM(S59:T59) -> 0 | V59: =S59+P59+M59+J59 -> 0 | W59: =T59+Q59+N59+K59 -> 0 | X59: =SUM(V59:W59) -> 0
E60: 600000 | F60: Tekuća pričuva predsjednika Vlade | G60: 30000 | H60: 0 | I60: =SUM(G60:H60) -> 30000 | L60: =SUM(J60:K60) -> 0 | O60: =SUM(M60:N60) -> 0 | R60: =SUM(P60:Q60) -> 0 | U60: =SUM(S60:T60) -> 0 | V60: =S60+P60+M60+J60 -> 0 | W60: =T60+Q60+N60+K60 -> 0 | X60: =SUM(V60:W60) -> 0
E61: 600000 | F61: Tekuća pričuva zamjenika pred.Vlade | G61: 15000 | H61: 0 | I61: 15000 | L61: 0 | O61: 0 | R61: 0 | U61: 0 | V61: 0 | W61: 0 | X61: 0
E62: 611000 | F62: Plaće i naknade troškova zaposlenih | G62: =SUM(G63:G65) -> 355500 | H62: =SUM(H63:H65) -> 0 | I62: =SUM(I63:I65) -> 355500 | J62: 0 | K62: 0 | L62: 0 | M62: =SUM(M63:M65) -> 0 | N62: 0 | O62: 0 | P62: =SUM(P63:P65) -> 0 | Q62: 0 | R62: 0 | S62: =SUM(S63:S65) -> 0 | T62: 0 | U62: 0 | V62: =SUM(V63:V65) -> 0 | W62: 0 | X62: 0 | Y62: =IF(OR(V62>G62, W62>H62),"Ukupni operativni plan je veći od Proračuna!","") -> 
E63: 611100 | F63: Bruto plaće i naknade | G63: 128000 | H63: 0 | I63: =SUM(G63:H63) -> 128000 | L63: =SUM(J63:K63) -> 0 | O63: =SUM(M63:N63) -> 0 | R63: =SUM(P63:Q63) -> 0 | U63: =SUM(S63:T63) -> 0 | V63: =S63+P63+M63+J63 -> 0 | W63: =T63+Q63+N63+K63 -> 0 | X63: =SUM(V63:W63) -> 0
E64: 611200 | F64: Naknade troškova zaposlenih | G64: 25600 | H64: 0 | I64: =SUM(G64:H64) -> 25600 | L64: =SUM(J64:K64) -> 0 | O64: =SUM(M64:N64) -> 0 | R64: =SUM(P64:Q64) -> 0 | U64: =SUM(S64:T64) -> 0 | V64: =S64+P64+M64+J64 -> 0 | W64: =T64+Q64+N64+K64 -> 0 | X64: =SUM(V64:W64) -> 0
E65: 611200 | F65: Naknade troškova zaposlenih - volonteri | G65: 201900 | H65: 0 | I65: 201900 | L65: 0 | O65: 0 | R65: 0 | U65: 0 | V65: 0 | W65: 0 | X65: 0
E66: 612000 | F66: Doprinosi poslodavca | G66: =G67 -> 13760 | H66: =H67 -> 0 | I66: =I67 -> 13760 | J66: 0 | K66: 0 | L66: 0 | M66: =M67 -> 0 | N66: 0 | O66: 0 | P66: =P67 -> 0 | Q66: 0 | R66: 0 | S66: =S67 -> 0 | T66: 0 | U66: 0 | V66: =V67 -> 0 | W66: 0 | X66: 0
E67: 612100 | F67: Doprinosi poslodavca | G67: 13760 | H67: 0 | I67: =SUM(G67:H67) -> 13760 | L67: =SUM(J67:K67) -> 0 | O67: =SUM(M67:N67) -> 0 | R67: =SUM(P67:Q67) -> 0 | U67: =SUM(S67:T67) -> 0 | V67: 0 | W67: 0 | X67: =SUM(V67:W67) -> 0
E68: 613000 | F68: Izdaci za materijal, sitan inventar i usluge | G68: =SUM(G69:G79) -> 433260 | H68: =SUM(H69:H79) -> 0 | I68: =SUM(I69:I79) -> 433260 | J68: 0 | K68: 0 | L68: 0 | M68: =SUM(M69:M79) -> 0 | N68: 0 | O68: 0 | P68: =SUM(P69:P79) -> 0 | Q68: 0 | R68: 0 | S68: =SUM(S69:S79) -> 0 | T68: 0 | U68: 0 | V68: =SUM(V69:V79) -> 0 | W68: 0 | X68: 0
E69: 613100 | F69: Putni troškovi | G69: 14000 | H69: 0 | I69: =SUM(G69:H69) -> 14000 | L69: =SUM(J69:K69) -> 0 | O69: =SUM(M69:N69) -> 0 | R69: =SUM(P69:Q69) -> 0 | U69: =SUM(S69:T69) -> 0 | V69: 0 | W69: 0 | X69: =SUM(V69:W69) -> 0
E70: 613200 | F70: Izdaci za energiju | G70: 0 | H70: 0 | I70: 0 | L70: 0 | O70: 0 | R70: 0 | U70: 0 | V70: 0 | W70: 0 | X70: 0
E71: 613300 | F71: Izdaci za komunikaciju i komunalne usluge | G71: 5500 | H71: 0 | I71: 5500 | L71: 0 | O71: 0 | R71: 0 | U71: 0 | V71: 0 | W71: 0 | X71: 0
E72: 613400 | F72: Nabava materijala i sitnog inventara | G72: 1500 | H72: 0 | I72: 1500 | L72: 0 | O72: 0 | R72: 0 | U72: 0 | V72: 0 | W72: 0 | X72: 0
E73: 613500 | F73: Izdaci za usluge prijevoza i goriva | G73: 1500 | H73: 0 | I73: 1500 | L73: 0 | O73: 0 | R73: 0 | U73: 0 | V73: 0 | W73: 0 | X73: 0
E74: 613600 | F74: Unajmljivanje imovine, opreme i nemat.imovine | G74: 0 | H74: 0 | I74: 0 | L74: 0 | O74: 0 | R74: 0 | U74: 0 | V74: 0 | W74: 0 | X74: 0
E75: 613700 | F75: Izdaci za tekuće održavanje | G75: 7000 | H75: 0 | I75: 7000 | L75: 0 | O75: 0 | R75: 0 | U75: 0 | V75: 0 | W75: 0 | X75: 0
E76: 613800 | F76: Izdaci osiguranja, bank.usluga i usluga PP | G76: 3460 | H76: 0 | I76: 3460 | L76: 0 | O76: 0 | R76: 0 | U76: 0 | V76: 0 | W76: 0 | X76: 0
E77: 613900 | F77: Ugovorene i druge posebne usluge | G77: 162100 | H77: 0 | I77: 162100 | L77: 0 | O77: 0 | R77: 0 | U77: 0 | V77: 0 | W77: 0 | X77: 0
E78: 613900 | F78: Agencija za državnu službu | G78: 29500 | H78: 0 | I78: 29500 | L78: 0 | O78: 0 | R78: 0 | U78: 0 | V78: 0 | W78: 0 | X78: 0
E79: 613900 | F79: Ugovorene i druge posebne usluge - volonteri | G79: 208700 | H79: 0 | I79: 208700 | L79: 0 | O79: 0 | R79: 0 | U79: 0 | V79: 0 | W79: 0 | X79: 0
E80: 614000 | F80: Tekući grantovi i drugi tekući rashodi | G80: =SUM(G81:G91) -> 855000 | H80: =SUM(H81:H91) -> 0 | I80: =SUM(I81:I91) -> 855000 | J80: =SUM(J81:J91) -> 0 | K80: 0 | L80: =SUM(L81:L91) -> 0 | M80: =SUM(M81:M91) -> 0 | N80: 0 | O80: =SUM(O81:O91) -> 0 | P80: =SUM(P81:P91) -> 0 | Q80: 0 | R80: =SUM(R81:R91) -> 0 | S80: =SUM(S81:S91) -> 0 | T80: 0 | U80: =SUM(U81:U91) -> 0 | V80: =SUM(V81:V91) -> 0 | W80: 0 | X80: =SUM(X81:X91) -> 0
E81: 614100 | F81: Grant za sanaciju šteta uzrokovanih poplavom | G81: 100000 | H81: 0 | I81: =SUM(G81:H81) -> 100000 | L81: =SUM(J81:K81) -> 0 | O81: =SUM(M81:N81) -> 0 | R81: =SUM(P81:Q81) -> 0 | U81: =SUM(S81:T81) -> 0 | V81: 0 | W81: 0 | X81: =SUM(V81:W81) -> 0
E82: 614100 | F82: Grant za Sveučilište u Mostaru | G82: 200000 | H82: 0 | I82: 200000 | L82: 0 | O82: 0 | R82: 0 | U82: 0 | V82: 0 | W82: 0 | X82: 0
E83: 614200 | F83: Grant za sufinanc.nabavke udžbenika učenicima | G83: 150000 | H83: 0 | I83: 150000 | L83: 0 | O83: 0 | R83: 0 | U83: 0 | V83: 0 | W83: 0 | X83: 0
E84: 614300 | F84: Grantovi nepro.organizacijama i udrugama građana | G84: 70000 | H84: 0 | I84: 70000 | L84: 0 | O84: 0 | R84: 0 | U84: 0 | V84: 0 | W84: 0 | X84: 0
E85: 614300 | F85: Grant za Crveni križ Županije Posavske | G85: 35000 | H85: 0 | I85: 35000 | L85: 0 | O85: 0 | R85: 0 | U85: 0 | V85: 0 | W85: 0 | X85: 0
E86: 614300 | F86: Grant za Kuću nade Odžak | G86: 40000 | H86: 0 | I86: 40000 | L86: 0 | O86: 0 | R86: 0 | U86: 0 | V86: 0 | W86: 0 | X86: 0
E87: 614300 | F87: Grant za udr.roditelja djece s pos.potrebama Orašje | G87: 40000 | H87: 0 | I87: 40000 | L87: 0 | O87: 0 | R87: 0 | U87: 0 | V87: 0 | W87: 0 | X87: 0
E88: 614300 | F88: Grant za udr.roditelja djce s pos.potr.Angelus Domalj. | G88: 15000 | H88: 0 | I88: 15000 | L88: 0 | O88: 0 | R88: 0 | U88: 0 | V88: 0 | W88: 0 | X88: 0
E89: 614300 | F89: Grant za Gospodarsku komoru ŽP | G89: 30000 | H89: 0 | I89: 30000 | L89: 0 | O89: 0 | R89: 0 | U89: 0 | V89: 0 | W89: 0 | X89: 0
E90: 614300 | F90: Grant za Obrtničku komoru ŽP | G90: 15000 | H90: 0 | I90: =SUM(G90:H90) -> 15000 | L90: =SUM(J90:K90) -> 0 | O90: =SUM(M90:N90) -> 0 | R90: =SUM(P90:Q90) -> 0 | U90: =SUM(S90:T90) -> 0 | V90: =S90+P90+M90+J90 -> 0 | W90: =T90+Q90+N90+K90 -> 0 | X90: =SUM(V90:W90) -> 0 | Y90: =IF(OR(V90>G90, W90>H90),"Ukupni operativni plan je veći od Proračuna!","") -> 
E91: 614300 | F91: Grantovi političkim strankama | G91: 160000 | H91: 0 | I91: 160000 | L91: 0 | O91: 0 | R91: 0 | U91: 0 | V91: 0 | W91: 0 | X91: 0
E92: 615000 | F92: Kapitalni grantovi | G92: =G93 -> 700000 | H92: =H93 -> 0 | I92: =I93 -> 700000 | J92: =J93 -> 0 | K92: 0 | L92: =L93 -> 0 | M92: =M93 -> 0 | N92: 0 | O92: =O93 -> 0 | P92: =P93 -> 0 | Q92: 0 | R92: =R93 -> 0 | S92: =S93 -> 0 | T92: 0 | U92: =U93 -> 0 | V92: =V93 -> 0 | W92: 0 | X92: =X93 -> 0
E93: 615100 | F93: Kapitalni grantovi | G93: 700000 | H93: 0 | I93: =SUM(G93:H93) -> 700000 | L93: =SUM(J93:K93) -> 0 | O93: =SUM(M93:N93) -> 0 | R93: =SUM(P93:Q93) -> 0 | U93: =SUM(S93:T93) -> 0 | V93: 0 | W93: 0 | X93: =SUM(V93:W93) -> 0
E94: 821000 | F94: Izdaci za nabavku stalnih sredstava | G94: =SUM(G95:G97) -> 10000 | H94: =SUM(H95:H97) -> 200000 | I94: 210000 | J94: 0 | K94: 0 | L94: 0 | M94: 0 | N94: 0 | O94: 0 | P94: 0 | Q94: 0 | R94: 0 | S94: 0 | T94: 0 | U94: 0 | V94: 0 | W94: 0 | X94: 0
E95: 821200 | F95: Nabavka građevina | G95: 0 | H95: 0 | I95: =SUM(G95:H95) -> 0 | L95: =SUM(J95:K95) -> 0 | O95: =SUM(M95:N95) -> 0 | R95: =SUM(P95:Q95) -> 0 | U95: =SUM(S95:T95) -> 0 | V95: 0 | W95: 0 | X95: =SUM(V95:W95) -> 0
E96: 821300 | F96: Nabavka opreme | G96: 10000 | H96: 0 | I96: =SUM(G96:H96) -> 10000 | L96: =SUM(J96:K96) -> 0 | O96: =SUM(M96:N96) -> 0 | R96: =SUM(P96:Q96) -> 0 | U96: =SUM(S96:T96) -> 0 | V96: 0 | W96: 0 | X96: =SUM(V96:W96) -> 0
E97: 821500 | F97: Nabavka stalnih sredstava u obliku prava | G97: 0 | H97: 200000 | I97: =SUM(G97:H97) -> 200000 | L97: =SUM(J97:K97) -> 0 | O97: =SUM(M97:N97) -> 0 | R97: =SUM(P97:Q97) -> 0 | U97: =SUM(S97:T97) -> 0 | V97: =S97+P97+M97+J97 -> 0 | W97: =T97+Q97+N97+K97 -> 0 | X97: =SUM(V97:W97) -> 0 | Y97: =IF(OR(V97>G97, W97>H97),"Ukupni operativni plan je veći od Proračuna!","") -> 
F98: Ukupno za korisnika Vlada Županije Posavske | G98: =G58+G62+G66+G68+G80+G92+G94 -> 3012520 | H98: 200000 | I98: 3212520 | J98: 0 | K98: 0 | L98: 0 | M98: 0 | N98: 0 | O98: 0 | P98: 0 | Q98: 0 | R98: 0 | S98: 0 | T98: 0 | U98: 0 | V98: 0 | W98: 0 | X98: 0
A100: 11 | B100: 01 | C100: 0002 | F100: URED ZA RASELJENE
E101: 611000 | F101: Plaće i naknade troškova zaposlenih | G101: =SUM(G102:G104) -> 55690 | H101: =SUM(H102:H104) -> 0 | I101: =SUM(I102:I104) -> 55690 | J101: =SUM(J102:J104) -> 0 | K101: =SUM(K102:K104) -> 0 | L101: =SUM(L102:L104) -> 0 | M101: =SUM(M102:M104) -> 0 | N101: =SUM(N102:N104) -> 0 | O101: =SUM(O102:O104) -> 0 | P101: =SUM(P102:P104) -> 0 | Q101: =SUM(Q102:Q104) -> 0 | R101: =SUM(R102:R104) -> 0 | S101: =SUM(S102:S104) -> 0 | T101: =SUM(T102:T104) -> 0 | U101: =SUM(U102:U104) -> 0 | V101: =SUM(V102:V104) -> 0 | W101: =SUM(W102:W104) -> 0 | X101: =SUM(X102:X104) -> 0
E102: 611100 | F102: Bruto plaće i naknade | G102: 46450 | H102: 0 | I102: =SUM(G102:H102) -> 46450 | L102: =SUM(J102:K102) -> 0 | O102: =SUM(M102:N102) -> 0 | R102: =SUM(P102:Q102) -> 0 | U102: =SUM(S102:T102) -> 0 | V102: =S102+P102+M102+J102 -> 0 | W102: =T102+Q102+N102+K102 -> 0 | X102: =SUM(V102:W102) -> 0
E103: 611200 | F103: Naknade troškova zaposlenih | G103: 9240 | H103: 0 | I103: =SUM(G103:H103) -> 9240 | L103: =SUM(J103:K103) -> 0 | O103: =SUM(M103:N103) -> 0 | R103: =SUM(P103:Q103) -> 0 | U103: =SUM(S103:T103) -> 0 | V103: 0 | W103: 0 | X103: =SUM(V103:W103) -> 0
E104: 611200 | F104: Naknade troškova zaposlenih - volonteri | G104: 0 | H104: 0 | I104: 0 | L104: 0 | O104: 0 | R104: 0 | U104: 0 | V104: 0 | W104: 0 | X104: 0
E105: 612000 | F105: Doprinosi poslodavca | G105: =G106 -> 6350 | H105: =H106 -> 0 | I105: =I106 -> 6350 | J105: =J106 -> 0 | K105: =K106 -> 0 | L105: =L106 -> 0 | M105: =M106 -> 0 | N105: =N106 -> 0 | O105: =O106 -> 0 | P105: =P106 -> 0 | Q105: =Q106 -> 0 | R105: =R106 -> 0 | S105: =S106 -> 0 | T105: =T106 -> 0 | U105: =U106 -> 0 | V105: =V106 -> 0 | W105: =W106 -> 0 | X105: =X106 -> 0
E106: 612100 | F106: Doprinosi poslodavca | G106: 6350 | H106: 0 | I106: =SUM(G106:H106) -> 6350 | L106: =SUM(J106:K106) -> 0 | O106: =SUM(M106:N106) -> 0 | R106: =SUM(P106:Q106) -> 0 | U106: =SUM(S106:T106) -> 0 | V106: =S106+P106+M106+J106 -> 0 | W106: =T106+Q106+N106+K106 -> 0 | X106: =SUM(V106:W106) -> 0
E107: 613000 | F107: Izdaci za materijal, sitan inventar i usluge | G107: =SUM(G108:G117) -> 4000 | H107: =SUM(H108:H117) -> 0 | I107: =SUM(I108:I117) -> 4000 | J107: =SUM(J108:J117) -> 0 | K107: =SUM(K108:K117) -> 0 | L107: =SUM(L108:L117) -> 0 | M107: =SUM(M108:M117) -> 0 | N107: =SUM(N108:N117) -> 0 | O107: =SUM(O108:O117) -> 0 | P107: =SUM(P108:P117) -> 0 | Q107: =SUM(Q108:Q117) -> 0 | R107: =SUM(R108:R117) -> 0 | S107: =SUM(S108:S117) -> 0 | T107: =SUM(T108:T117) -> 0 | U107: =SUM(U108:U117) -> 0 | V107: =SUM(V108:V117) -> 0 | W107: =SUM(W108:W117) -> 0 | X107: =SUM(X108:X117) -> 0
E108: 613100 | F108: Putni troškovi | G108: 500 | H108: 0 | I108: =SUM(G108:H108) -> 500 | L108: =SUM(J108:K108) -> 0 | O108: =SUM(M108:N108) -> 0 | R108: =SUM(P108:Q108) -> 0 | U108: =SUM(S108:T108) -> 0 | V108: =S108+P108+M108+J108 -> 0 | W108: =T108+Q108+N108+K108 -> 0 | X108: =SUM(V108:W108) -> 0
E109: 613200 | F109: Izdaci za energiju | G109: 0 | H109: 0 | I109: 0 | L109: 0 | O109: 0 | R109: 0 | U109: 0 | V109: 0 | W109: 0 | X109: 0
E110: 613300 | F110: Izdaci za komunikaciju i komunalne usluge | G110: 1100 | H110: 0 | I110: 1100 | L110: 0 | O110: 0 | R110: 0 | U110: 0 | V110: 0 | W110: 0 | X110: 0
E111: 613400 | F111: Nabava materijala i sitnog inventara | G111: 0 | H111: 0 | I111: 0 | L111: 0 | O111: 0 | R111: 0 | U111: 0 | V111: 0 | W111: 0 | X111: 0
E112: 613500 | F112: Izdaci za usluge prijevoza i goriva | G112: 0 | H112: 0 | I112: 0 | L112: 0 | O112: 0 | R112: 0 | U112: 0 | V112: 0 | W112: 0 | X112: 0
E113: 613600 | F113: Unajmljivanje imovine, opreme i nemat.imovine | G113: 0 | H113: 0 | I113: 0 | L113: 0 | O113: 0 | R113: 0 | U113: 0 | V113: 0 | W113: 0 | X113: 0
E114: 613700 | F114: Izdaci za tekuće održavanje | G114: 400 | H114: 0 | I114: 400 | L114: 0 | O114: 0 | R114: 0 | U114: 0 | V114: 0 | W114: 0 | X114: 0
E115: 613800 | F115: Izdaci osiguranja, bank.usluga i usluga PP | G115: 0 | H115: 0 | I115: 0 | L115: 0 | O115: 0 | R115: 0 | U115: 0 | V115: 0 | W115: 0 | X115: 0
E116: 613900 | F116: Ugovorene i druge posebne usluge | G116: 2000 | H116: 0 | I116: 2000 | L116: 0 | O116: 0 | R116: 0 | U116: 0 | V116: 0 | W116: 0 | X116: 0
E117: 613900 | F117: Ugovorene i druge posebne usluge - volonteri | G117: 0 | H117: 0 | I117: 0 | L117: 0 | O117: 0 | R117: 0 | U117: 0 | V117: 0 | W117: 0 | X117: 0
E118: 614000 | F118: Tekući grantovi i drugi tekući rashodi | G118: =G119 -> 20000 | H118: 0 | I118: 20000 | J118: 0 | K118: 0 | L118: 0 | M118: 0 | N118: 0 | O118: 0 | P118: 0 | Q118: 0 | R118: 0 | S118: 0 | T118: 0 | U118: 0 | V118: 0 | W118: 0 | X118: 0
E119: 614200 | F119: Grantovi za povratak raseljenih osoba | G119: 20000 | H119: 0 | I119: =SUM(G119:H119) -> 20000 | L119: =SUM(J119:K119) -> 0 | O119: =SUM(M119:N119) -> 0 | R119: =SUM(P119:Q119) -> 0 | U119: =SUM(S119:T119) -> 0 | V119: =S119+P119+M119+J119 -> 0 | W119: =T119+Q119+N119+K119 -> 0 | X119: =SUM(V119:W119) -> 0
E120: 821000 | F120: Izdaci za nabavku stalnih sredstava | G120: =SUM(G121:G122) -> 1000 | H120: =SUM(H121:H122) -> 0 | I120: =SUM(I121:I122) -> 1000 | J120: =SUM(J121:J122) -> 0 | K120: =SUM(K121:K122) -> 0 | L120: =SUM(L121:L122) -> 0 | M120: =SUM(M121:M122) -> 0 | N120: =SUM(N121:N122) -> 0 | O120: =SUM(O121:O122) -> 0 | P120: =SUM(P121:P122) -> 0 | Q120: =SUM(Q121:Q122) -> 0 | R120: =SUM(R121:R122) -> 0 | S120: =SUM(S121:S122) -> 0 | T120: =SUM(T121:T122) -> 0 | U120: =SUM(U121:U122) -> 0 | V120: =SUM(V121:V122) -> 0 | W120: =SUM(W121:W122) -> 0 | X120: =SUM(X121:X122) -> 0
E121: 821200 | F121: Nabavka građevina | G121: 0 | H121: 0 | I121: =SUM(G121:H121) -> 0 | L121: =SUM(J121:K121) -> 0 | O121: =SUM(M121:N121) -> 0 | R121: =SUM(P121:Q121) -> 0 | U121: =SUM(S121:T121) -> 0 | V121: =S121+P121+M121+J121 -> 0 | W121: =T121+Q121+N121+K121 -> 0 | X121: =SUM(V121:W121) -> 0
E122: 821300 | F122: Nabavka opreme | G122: 1000 | H122: 0 | I122: =SUM(G122:H122) -> 1000 | L122: =SUM(J122:K122) -> 0 | O122: =SUM(M122:N122) -> 0 | R122: =SUM(P122:Q122) -> 0 | U122: =SUM(S122:T122) -> 0 | V122: 0 | W122: 0 | X122: =SUM(V122:W122) -> 0
F123: Ukupno za korisnika Ured za raseljene | G123: =G101+G105+G107+G118+G120 -> 87040 | H123: =H101+H105+H107+H118+H120 -> 0 | I123: 87040 | J123: 0 | K123: 0 | L123: 0 | M123: 0 | N123: 0 | O123: 0 | P123: 0 | Q123: 0 | R123: 0 | S123: 0 | T123: 0 | U123: 0 | V123: 0 | W123: 0 | X123: 0
A125: 11 | B125: 01 | C125: 0003 | F125: URED ZA ZAKONODAVSTVO
E126: 611000 | F126: Plaće i naknade troškova zaposlenih | G126: =SUM(G127:G129) -> 47610 | H126: =SUM(H127:H129) -> 0 | I126: =SUM(I127:I129) -> 47610 | J126: =SUM(J127:J129) -> 0 | K126: =SUM(K127:K129) -> 0 | L126: =SUM(L127:L129) -> 0 | M126: =SUM(M127:M129) -> 0 | N126: =SUM(N127:N129) -> 0 | O126: =SUM(O127:O129) -> 0 | P126: =SUM(P127:P129) -> 0 | Q126: =SUM(Q127:Q129) -> 0 | R126: =SUM(R127:R129) -> 0 | S126: =SUM(S127:S129) -> 0 | T126: =SUM(T127:T129) -> 0 | U126: =SUM(U127:U129) -> 0 | V126: =SUM(V127:V129) -> 0 | W126: =SUM(W127:W129) -> 0 | X126: =SUM(X127:X129) -> 0
E127: 611100 | F127: Bruto plaće i naknade | G127: 42300 | H127: 0 | I127: =SUM(G127:H127) -> 42300 | L127: =SUM(J127:K127) -> 0 | O127: =SUM(M127:N127) -> 0 | R127: =SUM(P127:Q127) -> 0 | U127: =SUM(S127:T127) -> 0 | V127: =S127+P127+M127+J127 -> 0 | W127: =T127+Q127+N127+K127 -> 0 | X127: =SUM(V127:W127) -> 0
E128: 611200 | F128: Naknade troškova zaposlenih | G128: 5310 | H128: 0 | I128: =SUM(G128:H128) -> 5310 | L128: =SUM(J128:K128) -> 0 | O128: =SUM(M128:N128) -> 0 | R128: =SUM(P128:Q128) -> 0 | U128: =SUM(S128:T128) -> 0 | V128: 0 | W128: 0 | X128: =SUM(V128:W128) -> 0 | Y128: =IF(OR(V128>G128, W128>H128),"Ukupni operativni plan je veći od Proračuna!","") -> 
E129: 611200 | F129: Naknade troškova zaposlenih - volonteri | G129: 0 | H129: 0 | I129: 0 | L129: 0 | O129: 0 | R129: 0 | U129: 0 | V129: 0 | W129: 0 | X129: 0
E130: 612000 | F130: Doprinosi poslodavca | G130: =G131 -> 4660 | H130: =H131 -> 0 | I130: =I131 -> 4660 | J130: =J131 -> 0 | K130: =K131 -> 0 | L130: =L131 -> 0 | M130: =M131 -> 0 | N130: =N131 -> 0 | O130: =O131 -> 0 | P130: =P131 -> 0 | Q130: =Q131 -> 0 | R130: =R131 -> 0 | S130: =S131 -> 0 | T130: =T131 -> 0 | U130: =U131 -> 0 | V130: =V131 -> 0 | W130: =W131 -> 0 | X130: =X131 -> 0
E131: 612100 | F131: Doprinosi poslodavca | G131: 4660 | H131: 0 | I131: =SUM(G131:H131) -> 4660 | L131: =SUM(J131:K131) -> 0 | O131: =SUM(M131:N131) -> 0 | R131: =SUM(P131:Q131) -> 0 | U131: =SUM(S131:T131) -> 0 | V131: =S131+P131+M131+J131 -> 0 | W131: =T131+Q131+N131+K131 -> 0 | X131: =SUM(V131:W131) -> 0
E132: 613000 | F132: Izdaci za materijal, sitan inventar i usluge | G132: =SUM(G133:G142) -> 8300 | H132: =SUM(H133:H142) -> 0 | I132: =SUM(I133:I142) -> 8300 | J132: =SUM(J133:J142) -> 0 | K132: =SUM(K133:K142) -> 0 | L132: =SUM(L133:L142) -> 0 | M132: =SUM(M133:M142) -> 0 | N132: =SUM(N133:N142) -> 0 | O132: =SUM(O133:O142) -> 0 | P132: =SUM(P133:P142) -> 0 | Q132: =SUM(Q133:Q142) -> 0 | R132: =SUM(R133:R142) -> 0 | S132: =SUM(S133:S142) -> 0 | T132: =SUM(T133:T142) -> 0 | U132: =SUM(U133:U142) -> 0 | V132: =SUM(V133:V142) -> 0 | W132: =SUM(W133:W142) -> 0 | X132: =SUM(X133:X142) -> 0
E133: 613100 | F133: Putni troškovi | G133: 300 | H133: 0 | I133: =SUM(G133:H133) -> 300 | L133: =SUM(J133:K133) -> 0 | O133: =SUM(M133:N133) -> 0 | R133: =SUM(P133:Q133) -> 0 | U133: =SUM(S133:T133) -> 0 | V133: =S133+P133+M133+J133 -> 0 | W133: =T133+Q133+N133+K133 -> 0 | X133: =SUM(V133:W133) -> 0
E134: 613200 | F134: Izdaci za energiju | G134: 0 | H134: 0 | I134: 0 | L134: 0 | O134: 0 | R134: 0 | U134: 0 | V134: 0 | W134: 0 | X134: 0
E135: 613300 | F135: Izdaci za komunikaciju i komunalne usluge | G135: 0 | H135: 0 | I135: 0 | L135: 0 | O135: 0 | R135: 0 | U135: 0 | V135: 0 | W135: 0 | X135: 0
E136: 613400 | F136: Nabava materijala i sitnog inventara | G136: 0 | H136: 0 | I136: 0 | L136: 0 | O136: 0 | R136: 0 | U136: 0 | V136: 0 | W136: 0 | X136: 0
E137: 613500 | F137: Izdaci za usluge prijevoza i goriva | G137: 0 | H137: 0 | I137: 0 | L137: 0 | O137: 0 | R137: 0 | U137: 0 | V137: 0 | W137: 0 | X137: 0
E138: 613600 | F138: Unajmljivanje imovine, opreme i nemat.imovine | G138: 0 | H138: 0 | I138: 0 | L138: 0 | O138: 0 | R138: 0 | U138: 0 | V138: 0 | W138: 0 | X138: 0
E139: 613700 | F139: Izdaci za tekuće održavanje | G139: 0 | H139: 0 | I139: 0 | L139: 0 | O139: 0 | R139: 0 | U139: 0 | V139: 0 | W139: 0 | X139: 0
E140: 613800 | F140: Izdaci osiguranja, bank.usluga i usluga PP | G140: 0 | H140: 0 | I140: 0 | L140: 0 | O140: 0 | R140: 0 | U140: 0 | V140: 0 | W140: 0 | X140: 0
E141: 613900 | F141: Ugovorene i druge posebne usluge | G141: 8000 | H141: 0 | I141: 8000 | L141: 0 | O141: 0 | R141: 0 | U141: 0 | V141: 0 | W141: 0 | X141: 0
E142: 613900 | F142: Ugovorene i druge posebne usluge - volonteri | G142: 0 | H142: 0 | I142: 0 | L142: 0 | O142: 0 | R142: 0 | U142: 0 | V142: 0 | W142: 0 | X142: 0
E143: 821000 | F143: Izdaci za nabavku stalnih sredstava | G143: =SUM(G144:G145) -> 1500 | H143: =SUM(H144:H145) -> 0 | I143: =SUM(I144:I145) -> 1500 | J143: =SUM(J144:J145) -> 0 | K143: =SUM(K144:K145) -> 0 | L143: =SUM(L144:L145) -> 0 | M143: =SUM(M144:M145) -> 0 | N143: =SUM(N144:N145) -> 0 | O143: =SUM(O144:O145) -> 0 | P143: =SUM(P144:P145) -> 0 | Q143: =SUM(Q144:Q145) -> 0 | R143: =SUM(R144:R145) -> 0 | S143: =SUM(S144:S145) -> 0 | T143: =SUM(T144:T145) -> 0 | U143: =SUM(U144:U145) -> 0 | V143: =SUM(V144:V145) -> 0 | W143: =SUM(W144:W145) -> 0 | X143: =SUM(X144:X145) -> 0
E144: 821200 | F144: Nabavka građevina | G144: 0 | H144: 0 | I144: =SUM(G144:H144) -> 0 | L144: =SUM(J144:K144) -> 0 | O144: =SUM(M144:N144) -> 0 | R144: =SUM(P144:Q144) -> 0 | U144: =SUM(S144:T144) -> 0 | V144: =S144+P144+M144+J144 -> 0 | W144: =T144+Q144+N144+K144 -> 0 | X144: =SUM(V144:W144) -> 0
E145: 821300 | F145: Nabavka opreme | G145: 1500 | H145: 0 | I145: =SUM(G145:H145) -> 1500 | L145: =SUM(J145:K145) -> 0 | O145: =SUM(M145:N145) -> 0 | R145: =SUM(P145:Q145) -> 0 | U145: =SUM(S145:T145) -> 0 | V145: 0 | W145: 0 | X145: =SUM(V145:W145) -> 0
F146: Ukupno za korisnika Ured za zakonodavstvo | G146: =G126+G130+G132+G143 -> 62070 | H146: =H126+H130+H132+H143 -> 0 | I146: 62070 | J146: 0 | K146: 0 | L146: 0 | M146: 0 | N146: 0 | O146: 0 | P146: 0 | Q146: 0 | R146: 0 | S146: 0 | T146: 0 | U146: 0 | V146: 0 | W146: 0 | X146: 0
A148: 11 | B148: 01 | C148: 0004 | F148: SLUŽBA ZA ODNOSE S JAVNOŠĆU
E149: 611000 | F149: Plaće i naknade troškova zaposlenih | G149: =SUM(G150:G152) -> 75970 | H149: =SUM(H150:H152) -> 0 | I149: =SUM(I150:I152) -> 75970 | J149: =SUM(J150:J152) -> 0 | K149: =SUM(K150:K152) -> 0 | L149: =SUM(L150:L152) -> 0 | M149: =SUM(M150:M152) -> 0 | N149: =SUM(N150:N152) -> 0 | O149: =SUM(O150:O152) -> 0 | P149: =SUM(P150:P152) -> 0 | Q149: =SUM(Q150:Q152) -> 0 | R149: =SUM(R150:R152) -> 0 | S149: =SUM(S150:S152) -> 0 | T149: =SUM(T150:T152) -> 0 | U149: =SUM(U150:U152) -> 0 | V149: =SUM(V150:V152) -> 0 | W149: =SUM(W150:W152) -> 0 | X149: =SUM(X150:X152) -> 0
E150: 611100 | F150: Bruto plaće i naknade | G150: 64730 | H150: 0 | I150: =SUM(G150:H150) -> 64730 | L150: =SUM(J150:K150) -> 0 | O150: =SUM(M150:N150) -> 0 | R150: =SUM(P150:Q150) -> 0 | U150: =SUM(S150:T150) -> 0 | V150: =S150+P150+M150+J150 -> 0 | W150: =T150+Q150+N150+K150 -> 0 | X150: =SUM(V150:W150) -> 0
E151: 611200 | F151: Naknade troškova zaposlenih | G151: 11240 | H151: 0 | I151: =SUM(G151:H151) -> 11240 | L151: =SUM(J151:K151) -> 0 | O151: =SUM(M151:N151) -> 0 | R151: =SUM(P151:Q151) -> 0 | U151: =SUM(S151:T151) -> 0 | V151: 0 | W151: 0 | X151: =SUM(V151:W151) -> 0
E152: 611200 | F152: Naknade troškova zaposlenih - volonteri | G152: 0 | H152: 0 | I152: =SUM(G152:H152) -> 0 | L152: 0 | O152: 0 | R152: 0 | U152: 0 | V152: 0 | W152: 0 | X152: 0
E153: 612000 | F153: Doprinosi poslodavca | G153: =G154 -> 7000 | H153: =H154 -> 0 | I153: =I154 -> 7000 | J153: =J154 -> 0 | K153: =K154 -> 0 | L153: =L154 -> 0 | M153: =M154 -> 0 | N153: =N154 -> 0 | O153: =O154 -> 0 | P153: =P154 -> 0 | Q153: =Q154 -> 0 | R153: =R154 -> 0 | S153: =S154 -> 0 | T153: =T154 -> 0 | U153: =U154 -> 0 | V153: =V154 -> 0 | W153: =W154 -> 0 | X153: =X154 -> 0
E154: 612100 | F154: Doprinosi poslodavca | G154: 7000 | H154: 0 | I154: =SUM(G154:H154) -> 7000 | L154: =SUM(J154:K154) -> 0 | O154: =SUM(M154:N154) -> 0 | R154: =SUM(P154:Q154) -> 0 | U154: =SUM(S154:T154) -> 0 | V154: =S154+P154+M154+J154 -> 0 | W154: =T154+Q154+N154+K154 -> 0 | X154: =SUM(V154:W154) -> 0
E155: 613000 | F155: Izdaci za materijal, sitan inventar i usluge | G155: =SUM(G156:G165) -> 5900 | H155: =SUM(H156:H165) -> 0 | I155: =SUM(I156:I165) -> 5900 | J155: =SUM(J156:J165) -> 0 | K155: =SUM(K156:K165) -> 0 | L155: =SUM(L156:L165) -> 0 | M155: =SUM(M156:M165) -> 0 | N155: =SUM(N156:N165) -> 0 | O155: =SUM(O156:O165) -> 0 | P155: =SUM(P156:P165) -> 0 | Q155: =SUM(Q156:Q165) -> 0 | R155: =SUM(R156:R165) -> 0 | S155: =SUM(S156:S165) -> 0 | T155: =SUM(T156:T165) -> 0 | U155: =SUM(U156:U165) -> 0 | V155: =SUM(V156:V165) -> 0 | W155: =SUM(W156:W165) -> 0 | X155: =SUM(X156:X165) -> 0
E156: 613100 | F156: Putni troškovi | G156: 1000 | H156: 0 | I156: =SUM(G156:H156) -> 1000 | L156: =SUM(J156:K156) -> 0 | O156: =SUM(M156:N156) -> 0 | R156: =SUM(P156:Q156) -> 0 | U156: =SUM(S156:T156) -> 0 | V156: =S156+P156+M156+J156 -> 0 | W156: =T156+Q156+N156+K156 -> 0 | X156: =SUM(V156:W156) -> 0
E157: 613200 | F157: Izdaci za energiju | G157: 0 | H157: 0 | I157: 0 | L157: 0 | O157: 0 | R157: 0 | U157: 0 | V157: 0 | W157: 0 | X157: 0
E158: 613300 | F158: Izdaci za komunikaciju i komunalne usluge | G158: 2500 | H158: 0 | I158: 2500 | L158: 0 | O158: 0 | R158: 0 | U158: 0 | V158: 0 | W158: 0 | X158: 0
E159: 613400 | F159: Nabava materijala i sitnog inventara | G159: 500 | H159: 0 | I159: 500 | L159: 0 | O159: 0 | R159: 0 | U159: 0 | V159: 0 | W159: 0 | X159: 0
E160: 613500 | F160: Izdaci za usluge prijevoza i goriva | G160: 0 | H160: 0 | I160: 0 | L160: 0 | O160: 0 | R160: 0 | U160: 0 | V160: 0 | W160: 0 | X160: 0
E161: 613600 | F161: Unajmljivanje imovine, opreme i nemat.imovine | G161: 0 | H161: 0 | I161: 0 | L161: 0 | O161: 0 | R161: 0 | U161: 0 | V161: 0 | W161: 0 | X161: 0
E162: 613700 | F162: Izdaci za tekuće održavanje | G162: 400 | H162: 0 | I162: 400 | L162: 0 | O162: 0 | R162: 0 | U162: 0 | V162: 0 | W162: 0 | X162: 0
E163: 613800 | F163: Izdaci osiguranja, bank.usluga i usluga PP | G163: 0 | H163: 0 | I163: 0 | L163: 0 | O163: 0 | R163: 0 | U163: 0 | V163: 0 | W163: 0 | X163: 0
E164: 613900 | F164: Ugovorene i druge posebne usluge | G164: 1500 | H164: 0 | I164: 1500 | L164: 0 | O164: 0 | R164: 0 | U164: 0 | V164: 0 | W164: 0 | X164: 0
E165: 613900 | F165: Ugovorene i druge posebne usluge - volonteri | G165: 0 | H165: 0 | I165: 0 | L165: 0 | O165: 0 | R165: 0 | U165: 0 | V165: 0 | W165: 0 | X165: 0
E166: 821000 | F166: Izdaci za nabavku stalnih sredstava | G166: =SUM(G167:G168) -> 1500 | H166: =SUM(H167:H168) -> 0 | I166: =SUM(I167:I168) -> 1500 | J166: =SUM(J167:J168) -> 0 | K166: =SUM(K167:K168) -> 0 | L166: =SUM(L167:L168) -> 0 | M166: =SUM(M167:M168) -> 0 | N166: =SUM(N167:N168) -> 0 | O166: =SUM(O167:O168) -> 0 | P166: =SUM(P167:P168) -> 0 | Q166: =SUM(Q167:Q168) -> 0 | R166: =SUM(R167:R168) -> 0 | S166: =SUM(S167:S168) -> 0 | T166: =SUM(T167:T168) -> 0 | U166: =SUM(U167:U168) -> 0 | V166: =SUM(V167:V168) -> 0 | W166: =SUM(W167:W168) -> 0 | X166: =SUM(X167:X168) -> 0
E167: 821200 | F167: Nabavka građevina | G167: 0 | H167: 0 | I167: =SUM(G167:H167) -> 0 | L167: =SUM(J167:K167) -> 0 | O167: =SUM(M167:N167) -> 0 | R167: =SUM(P167:Q167) -> 0 | U167: =SUM(S167:T167) -> 0 | V167: =S167+P167+M167+J167 -> 0 | W167: =T167+Q167+N167+K167 -> 0 | X167: =SUM(V167:W167) -> 0
E168: 821300 | F168: Nabavka opreme | G168: 1500 | H168: 0 | I168: =SUM(G168:H168) -> 1500 | L168: =SUM(J168:K168) -> 0 | O168: =SUM(M168:N168) -> 0 | R168: =SUM(P168:Q168) -> 0 | U168: =SUM(S168:T168) -> 0 | V168: 0 | W168: 0 | X168: =SUM(V168:W168) -> 0
F169: Ukupno za korisnika Služba za odnose s javnošću | G169: =G149+G153+G155+G166 -> 90370 | H169: =H149+H153+H155+H166 -> 0 | I169: 90370 | J169: 0 | K169: 0 | L169: 0 | M169: 0 | N169: 0 | O169: 0 | P169: 0 | Q169: 0 | R169: 0 | S169: 0 | T169: 0 | U169: 0 | V169: 0 | W169: 0 | X169: 0
A171: 11 | B171: 01 | C171: 0005 | F171: URED ZA RAZVOJ I EUROPSKE INTEGRACIJE
E172: 611000 | F172: Plaće i naknade troškova zaposlenih | G172: =SUM(G173:G175) -> 158190 | H172: =SUM(H173:H175) -> 0 | I172: =SUM(I173:I175) -> 158190 | J172: =SUM(J173:J175) -> 0 | K172: =SUM(K173:K175) -> 0 | L172: =SUM(L173:L175) -> 0 | M172: =SUM(M173:M175) -> 0 | N172: =SUM(N173:N175) -> 0 | O172: =SUM(O173:O175) -> 0 | P172: =SUM(P173:P175) -> 0 | Q172: =SUM(Q173:Q175) -> 0 | R172: =SUM(R173:R175) -> 0 | S172: =SUM(S173:S175) -> 0 | T172: =SUM(T173:T175) -> 0 | U172: =SUM(U173:U175) -> 0 | V172: =SUM(V173:V175) -> 0 | W172: =SUM(W173:W175) -> 0 | X172: =SUM(X173:X175) -> 0
E173: 611100 | F173: Bruto plaće i naknade | G173: 126850 | H173: 0 | I173: =SUM(G173:H173) -> 126850 | L173: =SUM(J173:K173) -> 0 | O173: =SUM(M173:N173) -> 0 | R173: =SUM(P173:Q173) -> 0 | U173: =SUM(S173:T173) -> 0 | V173: =S173+P173+M173+J173 -> 0 | W173: =T173+Q173+N173+K173 -> 0 | X173: =SUM(V173:W173) -> 0
E174: 611200 | F174: Naknade troškova zaposlenih | G174: 31340 | H174: 0 | I174: =SUM(G174:H174) -> 31340 | L174: =SUM(J174:K174) -> 0 | O174: =SUM(M174:N174) -> 0 | R174: =SUM(P174:Q174) -> 0 | U174: =SUM(S174:T174) -> 0 | V174: 0 | W174: 0 | X174: =SUM(V174:W174) -> 0
E175: 611200 | F175: Naknade troškova zaposlenih - volonteri | G175: 0 | H175: 0 | I175: 0 | L175: 0 | O175: 0 | R175: 0 | U175: 0 | V175: 0 | W175: 0 | X175: 0
E176: 612000 | F176: Doprinosi poslodavca | G176: =G177 -> 14010 | H176: =H177 -> 0 | I176: =I177 -> 14010 | J176: =J177 -> 0 | K176: =K177 -> 0 | L176: =L177 -> 0 | M176: =M177 -> 0 | N176: =N177 -> 0 | O176: =O177 -> 0 | P176: =P177 -> 0 | Q176: =Q177 -> 0 | R176: =R177 -> 0 | S176: =S177 -> 0 | T176: =T177 -> 0 | U176: =U177 -> 0 | V176: =V177 -> 0 | W176: =W177 -> 0 | X176: =X177 -> 0
E177: 612100 | F177: Doprinosi poslodavca | G177: 14010 | H177: 0 | I177: =SUM(G177:H177) -> 14010 | L177: =SUM(J177:K177) -> 0 | O177: =SUM(M177:N177) -> 0 | R177: =SUM(P177:Q177) -> 0 | U177: =SUM(S177:T177) -> 0 | V177: =S177+P177+M177+J177 -> 0 | W177: =T177+Q177+N177+K177 -> 0 | X177: =SUM(V177:W177) -> 0
E178: 613000 | F178: Izdaci za materijal, sitan inventar i usluge | G178: =SUM(G179:G188) -> 10400 | H178: =SUM(H179:H188) -> 0 | I178: =SUM(I179:I188) -> 10400 | J178: =SUM(J179:J188) -> 0 | K178: =SUM(K179:K188) -> 0 | L178: =SUM(L179:L188) -> 0 | M178: =SUM(M179:M188) -> 0 | N178: =SUM(N179:N188) -> 0 | O178: =SUM(O179:O188) -> 0 | P178: =SUM(P179:P188) -> 0 | Q178: =SUM(Q179:Q188) -> 0 | R178: =SUM(R179:R188) -> 0 | S178: =SUM(S179:S188) -> 0 | T178: =SUM(T179:T188) -> 0 | U178: =SUM(U179:U188) -> 0 | V178: =SUM(V179:V188) -> 0 | W178: =SUM(W179:W188) -> 0 | X178: =SUM(X179:X188) -> 0
E179: 613100 | F179: Putni troškovi | G179: 5000 | H179: 0 | I179: =SUM(G179:H179) -> 5000 | L179: =SUM(J179:K179) -> 0 | O179: =SUM(M179:N179) -> 0 | R179: =SUM(P179:Q179) -> 0 | U179: =SUM(S179:T179) -> 0 | V179: =S179+P179+M179+J179 -> 0 | W179: =T179+Q179+N179+K179 -> 0 | X179: =SUM(V179:W179) -> 0
E180: 613200 | F180: Izdaci za energiju | G180: 0 | H180: 0 | I180: 0 | L180: 0 | O180: 0 | R180: 0 | U180: 0 | V180: 0 | W180: 0 | X180: 0
E181: 613300 | F181: Izdaci za komunikaciju i komunalne usluge | G181: 1200 | H181: 0 | I181: 1200 | L181: 0 | O181: 0 | R181: 0 | U181: 0 | V181: 0 | W181: 0 | X181: 0
E182: 613400 | F182: Nabava materijala i sitnog inventara | G182: 1000 | H182: 0 | I182: 1000 | L182: 0 | O182: 0 | R182: 0 | U182: 0 | V182: 0 | W182: 0 | X182: 0
E183: 613500 | F183: Izdaci za usluge prijevoza i goriva | G183: 0 | H183: 0 | I183: 0 | L183: 0 | O183: 0 | R183: 0 | U183: 0 | V183: 0 | W183: 0 | X183: 0
E184: 613600 | F184: Unajmljivanje imovine, opreme i nemat.imovine | G184: 0 | H184: 0 | I184: 0 | L184: 0 | O184: 0 | R184: 0 | U184: 0 | V184: 0 | W184: 0 | X184: 0
E185: 613700 | F185: Izdaci za tekuće održavanje | G185: 700 | H185: 0 | I185: 700 | L185: 0 | O185: 0 | R185: 0 | U185: 0 | V185: 0 | W185: 0 | X185: 0
E186: 613800 | F186: Izdaci osiguranja, bank.usluga i usluga PP | G186: 0 | H186: 0 | I186: 0 | L186: 0 | O186: 0 | R186: 0 | U186: 0 | V186: 0 | W186: 0 | X186: 0
E187: 613900 | F187: Ugovorene i druge posebne usluge | G187: 2500 | H187: 0 | I187: 2500 | L187: 0 | O187: 0 | R187: 0 | U187: 0 | V187: 0 | W187: 0 | X187: 0
E188: 613900 | F188: Ugovorene i druge posebne usluge - volonteri | G188: 0 | H188: 0 | I188: 0 | L188: 0 | O188: 0 | R188: 0 | U188: 0 | V188: 0 | W188: 0 | X188: 0
E189: 821000 | F189: Izdaci za nabavku stalnih sredstava | G189: =SUM(G190:G191) -> 7000 | H189: =SUM(H190:H191) -> 0 | I189: =SUM(I190:I191) -> 7000 | J189: =SUM(J190:J191) -> 0 | K189: =SUM(K190:K191) -> 0 | L189: =SUM(L190:L191) -> 0 | M189: =SUM(M190:M191) -> 0 | N189: =SUM(N190:N191) -> 0 | O189: =SUM(O190:O191) -> 0 | P189: =SUM(P190:P191) -> 0 | Q189: =SUM(Q190:Q191) -> 0 | R189: =SUM(R190:R191) -> 0 | S189: =SUM(S190:S191) -> 0 | T189: =SUM(T190:T191) -> 0 | U189: =SUM(U190:U191) -> 0 | V189: =SUM(V190:V191) -> 0 | W189: =SUM(W190:W191) -> 0 | X189: =SUM(X190:X191) -> 0
E190: 821200 | F190: Nabavka građevina | G190: 0 | H190: 0 | I190: =SUM(G190:H190) -> 0 | L190: =SUM(J190:K190) -> 0 | O190: =SUM(M190:N190) -> 0 | R190: =SUM(P190:Q190) -> 0 | U190: =SUM(S190:T190) -> 0 | V190: =S190+P190+M190+J190 -> 0 | W190: =T190+Q190+N190+K190 -> 0 | X190: =SUM(V190:W190) -> 0
E191: 821300 | F191: Nabavka opreme | G191: 7000 | H191: 0 | I191: =SUM(G191:H191) -> 7000 | L191: =SUM(J191:K191) -> 0 | O191: =SUM(M191:N191) -> 0 | R191: =SUM(P191:Q191) -> 0 | U191: =SUM(S191:T191) -> 0 | V191: 0 | W191: 0 | X191: =SUM(V191:W191) -> 0
F192: Ukupno za korisnika Ured za gospodarski razvoj ŽP | G192: =G172+G176+G178+G189 -> 189600 | H192: =H172+H176+H178+H189 -> 0 | I192: 189600 | J192: 0 | K192: 0 | L192: 0 | M192: 0 | N192: 0 | O192: 0 | P192: 0 | Q192: 0 | R192: 0 | S192: 0 | T192: 0 | U192: 0 | V192: 0 | W192: 0 | X192: 0 | Y192: =IF(OR(V192>G192, W192>H192),"Ukupni operativni plan je veći od Proračuna!","") -> 
A194: 12 | B194: 01 | C194: 0001 | F194: ZAJEDNIČKA SLUŽBA VLADE
E195: 611000 | F195: Plaće i naknade troškova zaposlenih | G195: =SUM(G196:G198) -> 267560 | H195: =SUM(H196:H198) -> 0 | I195: =SUM(I196:I198) -> 267560 | J195: =SUM(J196:J198) -> 0 | K195: =SUM(K196:K198) -> 0 | L195: =SUM(L196:L198) -> 0 | M195: =SUM(M196:M198) -> 0 | N195: =SUM(N196:N198) -> 0 | O195: =SUM(O196:O198) -> 0 | P195: =SUM(P196:P198) -> 0 | Q195: =SUM(Q196:Q198) -> 0 | R195: =SUM(R196:R198) -> 0 | S195: =SUM(S196:S198) -> 0 | T195: =SUM(T196:T198) -> 0 | U195: =SUM(U196:U198) -> 0 | V195: =SUM(V196:V198) -> 0 | W195: =SUM(W196:W198) -> 0 | X195: =SUM(X196:X198) -> 0
E196: 611100 | F196: Bruto plaće i naknade | G196: 209740 | H196: 0 | I196: =SUM(G196:H196) -> 209740 | L196: =SUM(J196:K196) -> 0 | O196: =SUM(M196:N196) -> 0 | R196: =SUM(P196:Q196) -> 0 | U196: =SUM(S196:T196) -> 0 | V196: =S196+P196+M196+J196 -> 0 | W196: =T196+Q196+N196+K196 -> 0 | X196: =SUM(V196:W196) -> 0
E197: 611200 | F197: Naknade troškova zaposlenih | G197: 57820 | H197: 0 | I197: =SUM(G197:H197) -> 57820 | L197: =SUM(J197:K197) -> 0 | O197: =SUM(M197:N197) -> 0 | R197: =SUM(P197:Q197) -> 0 | U197: =SUM(S197:T197) -> 0 | V197: 0 | W197: 0 | X197: =SUM(V197:W197) -> 0
E198: 611200 | F198: Naknade troškova zaposlenih - volonteri | G198: 0 | H198: 0 | I198: 0 | L198: 0 | O198: 0 | R198: 0 | U198: 0 | V198: 0 | W198: 0 | X198: 0
E199: 612000 | F199: Doprinosi poslodavca | G199: =G200 -> 22720 | H199: =H200 -> 0 | I199: =I200 -> 22720 | J199: =J200 -> 0 | K199: =K200 -> 0 | L199: =L200 -> 0 | M199: =M200 -> 0 | N199: =N200 -> 0 | O199: =O200 -> 0 | P199: =P200 -> 0 | Q199: =Q200 -> 0 | R199: =R200 -> 0 | S199: =S200 -> 0 | T199: =T200 -> 0 | U199: =U200 -> 0 | V199: =V200 -> 0 | W199: =W200 -> 0 | X199: =X200 -> 0
E200: 612100 | F200: Doprinosi poslodavca | G200: 22720 | H200: 0 | I200: =SUM(G200:H200) -> 22720 | L200: =SUM(J200:K200) -> 0 | O200: =SUM(M200:N200) -> 0 | R200: =SUM(P200:Q200) -> 0 | U200: =SUM(S200:T200) -> 0 | V200: =S200+P200+M200+J200 -> 0 | W200: =T200+Q200+N200+K200 -> 0 | X200: =SUM(V200:W200) -> 0
E201: 613000 | F201: Izdaci za materijal, sitan inventar i usluge | G201: =SUM(G202:G211) -> 403500 | H201: =SUM(H202:H211) -> 0 | I201: =SUM(I202:I211) -> 403500 | J201: =SUM(J202:J211) -> 0 | K201: =SUM(K202:K211) -> 0 | L201: =SUM(L202:L211) -> 0 | M201: =SUM(M202:M211) -> 0 | N201: =SUM(N202:N211) -> 0 | O201: =SUM(O202:O211) -> 0 | P201: =SUM(P202:P211) -> 0 | Q201: =SUM(Q202:Q211) -> 0 | R201: =SUM(R202:R211) -> 0 | S201: =SUM(S202:S211) -> 0 | T201: =SUM(T202:T211) -> 0 | U201: =SUM(U202:U211) -> 0 | V201: =SUM(V202:V211) -> 0 | W201: =SUM(W202:W211) -> 0 | X201: =SUM(X202:X211) -> 0
E202: 613100 | F202: Putni troškovi | G202: 7000 | H202: 0 | I202: =SUM(G202:H202) -> 7000 | L202: =SUM(J202:K202) -> 0 | O202: =SUM(M202:N202) -> 0 | R202: =SUM(P202:Q202) -> 0 | U202: =SUM(S202:T202) -> 0 | V202: =S202+P202+M202+J202 -> 0 | W202: =T202+Q202+N202+K202 -> 0 | X202: =SUM(V202:W202) -> 0
E203: 613200 | F203: Izdaci za energiju | G203: 104000 | H203: 0 | I203: 104000 | L203: 0 | O203: 0 | R203: 0 | U203: 0 | V203: 0 | W203: 0 | X203: 0
E204: 613300 | F204: Izdaci za komunikaciju i komunalne usluge | G204: 44000 | H204: 0 | I204: 44000 | L204: 0 | O204: 0 | R204: 0 | U204: 0 | V204: 0 | W204: 0 | X204: 0
E205: 613400 | F205: Nabava materijala i sitnog inventara | G205: 84000 | H205: 0 | I205: 84000 | L205: 0 | O205: 0 | R205: 0 | U205: 0 | V205: 0 | W205: 0 | X205: 0
E206: 613500 | F206: Izdaci za usluge prijevoza i goriva | G206: 54000 | H206: 0 | I206: 54000 | L206: 0 | O206: 0 | R206: 0 | U206: 0 | V206: 0 | W206: 0 | X206: 0
E207: 613600 | F207: Unajmljivanje imovine, opreme i nemat.imovine | G207: 0 | H207: 0 | I207: 0 | L207: 0 | O207: 0 | R207: 0 | U207: 0 | V207: 0 | W207: 0 | X207: 0
E208: 613700 | F208: Izdaci za tekuće održavanje | G208: 42000 | H208: 0 | I208: 42000 | L208: 0 | O208: 0 | R208: 0 | U208: 0 | V208: 0 | W208: 0 | X208: 0
... 695 more rows

Sheet Kvartalni
A1: ="PRIJEDLOG TROMJESEČNOG OPERATIVNOG PLANA RASHODA I IZDATAKA ZA "&E5&" 2018. GODINE" -> PRIJEDLOG TROMJESEČNOG OPERATIVNOG PLANA RASHODA I IZDATAKA ZA I. kvartal 2018. GODINE
G2: =E4 -> 15010001
A3: Proračunski korisnik: | E3: =INDEX(Lista!A:B,MATCH($E$4,Lista!A:A,0),2) -> MINISTARSTVO GOSPODARSTVA I PROSTORNOG UREĐENJA
A4: Organizacijski kod: | E4: 15010001
A5: Kvartal: | E5: I. kvartal
A7: Razdjel | B7: Glava | C7: Potroš. jedinica | E7: Ekonom. kod | F7: Opis | H7: Proračun za 2018. godinu | K7: =INDEX(Lista!J:K,MATCH($E$5,Lista!J:J,0),2) -> Siječanj 2018. god. | N7: =INDEX(Lista!J:K,MATCH($E$5,Lista!J:J,0)+1,2) -> Veljača 2018. god. | Q7: =INDEX(Lista!J:K,MATCH($E$5,Lista!J:J,0)+2,2) -> Ožujak 2018. god. | T7: ="Ukupno za "&E5&" 2018. god." -> Ukupno za I. kvartal 2018. god.
G8: Rashodi i | H8: Rashodi iz | I8: Ukupni | J8: Rashodi i | K8: Rashodi iz | L8: Ukupni | M8: Rashodi i | N8: Rashodi iz | O8: Ukupni | P8: Rashodi i | Q8: Rashodi iz | R8: Ukupni | S8: Rashodi i | T8: Rashodi iz | U8: Ukupni
G9: izdaci iz | H9: namj.sr., | I9: rashodi i | J9: izdaci iz | K9: namj.sr., | L9: rashodi i | M9: izdaci iz | N9: namj.sr., | O9: rashodi i | P9: izdaci iz | Q9: namj.sr., | R9: rashodi i | S9: izdaci iz | T9: namj.sr., | U9: rashodi i
G10: proračuna | H10: tek. trans. i don. | I10: izdaci | J10: proračuna | K10: tek. trans. i don. | L10: izdaci | M10: proračuna | N10: tek. trans. i don. | O10: izdaci | P10: proračuna | Q10: tek. trans. i don. | R10: izdaci | S10: proračuna | T10: tek. trans. i don. | U10: izdaci
A11: 1 | B11: 2 | C11: 3 | E11: 4 | F11: 5 | G11: 6 | H11: 7 | I11: 8 | J11: 9 | K11: 10 | L11: 11 | M11: 12 | N11: 13 | O11: 14 | P11: 15 | Q11: 16 | R11: 17 | S11: 18 | T11: 19 | U11: 20
A12: 10 | B12: 01 | C12: 0001 | F12: SKUPŠTINA ŽUPANIJE POSAVSKE
E13: 611000 | F13: Plaće i naknade troškova zaposlenih | G13: =SUM(G14:G16) -> 449460 | H13: =SUM(H14:H16) -> 0 | I13: 449460 | J13: 0 | K13: 0 | L13: 0 | M13: 0 | N13: 0 | O13: 0 | P13: 0 | Q13: 0 | R13: 0 | S13: 0 | T13: 0 | U13: 0
E14: 611100 | F14: Bruto plaće i naknade | G14: =Godišnji!G13 -> 370430 | H14: 0 | I14: =SUM(G14:H14) -> 370430 | L14: =SUM(J14:K14) -> 0 | O14: =SUM(M14:N14) -> 0 | R14: =SUM(P14:Q14) -> 0 | S14: =P14+M14+J14 -> 0 | T14: =Q14+N14+K14 -> 0 | U14: =SUM(S14:T14) -> 0
E15: 611200 | F15: Naknade troškova zaposlenih | G15: =Godišnji!G14 -> 79030 | H15: 0 | I15: =SUM(G15:H15) -> 79030 | L15: =SUM(J15:K15) -> 0 | O15: =SUM(M15:N15) -> 0 | R15: =SUM(P15:Q15) -> 0 | S15: =P15+M15+J15 -> 0 | T15: =Q15+N15+K15 -> 0 | U15: =SUM(S15:T15) -> 0
E16: 611200 | F16: Naknade troškova zaposlenih - volonteri | G16: =Godišnji!G15 -> 0 | H16: 0 | I16: 0 | L16: 0 | O16: 0 | R16: 0 | S16: 0 | T16: 0 | U16: 0
E17: 612000 | F17: Doprinosi poslodavca | G17: =G18 -> 39650 | H17: =H18 -> 0 | I17: 39650 | J17: 0 | K17: 0 | L17: 0 | M17: 0 | N17: 0 | O17: 0 | P17: 0 | Q17: 0 | R17: 0 | S17: 0 | T17: 0 | U17: 0
E18: 612100 | F18: Doprinosi poslodavca | G18: =Godišnji!G17 -> 39650 | H18: 0 | I18: =SUM(G18:H18) -> 39650 | L18: =SUM(J18:K18) -> 0 | O18: =SUM(M18:N18) -> 0 | R18: =SUM(P18:Q18) -> 0 | S18: =P18+M18+J18 -> 0 | T18: =Q18+N18+K18 -> 0 | U18: =SUM(S18:T18) -> 0
E19: 613000 | F19: Izdaci za materijal, sitan inventar i usluge | G19: =SUM(G20:G29) -> 278400 | H19: =SUM(H20:H29) -> 0 | I19: 278400 | J19: 0 | K19: 0 | L19: 0 | M19: 0 | N19: 0 | O19: 0 | P19: 0 | Q19: 0 | R19: 0 | S19: 0 | T19: 0 | U19: 0
E20: 613100 | F20: Putni troškovi | G20: =Godišnji!G19 -> 6500 | H20: 0 | I20: =SUM(G20:H20) -> 6500 | L20: =SUM(J20:K20) -> 0 | O20: =SUM(M20:N20) -> 0 | R20: =SUM(P20:Q20) -> 0 | S20: =P20+M20+J20 -> 0 | T20: =Q20+N20+K20 -> 0 | U20: =SUM(S20:T20) -> 0
E21: 613200 | F21: Izdaci za energiju | G21: =Godišnji!G20 -> 13600 | H21: 0 | I21: 13600 | L21: 0 | O21: 0 | R21: 0 | S21: 0 | T21: 0 | U21: 0
E22: 613300 | F22: Izdaci za komunikaciju i komunalne usluge | G22: =Godišnji!G21 -> 7300 | H22: 0 | I22: 7300 | L22: 0 | O22: 0 | R22: 0 | S22: 0 | T22: 0 | U22: 0
E23: 613400 | F23: Nabava materijala i sitnog inventara | G23: =Godišnji!G22 -> 5500 | H23: 0 | I23: 5500 | L23: 0 | O23: 0 | R23: 0 | S23: 0 | T23: 0 | U23: 0
E24: 613500 | F24: Izdaci za usluge prijevoza i goriva | G24: =Godišnji!G23 -> 10000 | H24: 0 | I24: 10000 | L24: 0 | O24: 0 | R24: 0 | S24: 0 | T24: 0 | U24: 0
E25: 613600 | F25: Unajmljivanje imovine, opreme i nemat.imovine | G25: =Godišnji!G24 -> 0 | H25: 0 | I25: 0 | L25: 0 | O25: 0 | R25: 0 | S25: 0 | T25: 0 | U25: 0
E26: 613700 | F26: Izdaci za tekuće održavanje | G26: =Godišnji!G25 -> 8000 | H26: 0 | I26: 8000 | L26: 0 | O26: 0 | R26: 0 | S26: 0 | T26: 0 | U26: 0
E27: 613800 | F27: Izdaci osiguranja, bank.usluga i usluga PP | G27: =Godišnji!G26 -> 2500 | H27: 0 | I27: 2500 | L27: 0 | O27: 0 | R27: 0 | S27: 0 | T27: 0 | U27: 0
E28: 613900 | F28: Ugovorene i druge posebne usluge | G28: =Godišnji!G27 -> 225000 | H28: 0 | I28: 225000 | L28: 0 | O28: 0 | R28: 0 | S28: 0 | T28: 0 | U28: 0
E29: 613900 | F29: Ugovorene i druge posebne usluge - volonteri | G29: =Godišnji!G28 -> 0 | H29: 0 | I29: 0 | L29: 0 | O29: 0 | R29: 0 | S29: 0 | T29: 0 | U29: 0
E30: 821000 | F30: Izdaci za nabavku stalnih sredstava | G30: =SUM(G31:G32) -> 10000 | H30: =SUM(H31:H32) -> 0 | I30: 10000 | J30: 0 | K30: 0 | L30: 0 | M30: 0 | N30: 0 | O30: 0 | P30: 0 | Q30: 0 | R30: 0 | S30: 0 | T30: 0 | U30: 0
E31: 821200 | F31: Nabavka građevina | G31: =Godišnji!G30 -> 5000 | H31: 0 | I31: =SUM(G31:H31) -> 5000 | L31: =SUM(J31:K31) -> 0 | O31: =SUM(M31:N31) -> 0 | R31: =SUM(P31:Q31) -> 0 | S31: =P31+M31+J31 -> 0 | T31: =Q31+N31+K31 -> 0 | U31: =SUM(S31:T31) -> 0
E32: 821300 | F32: Nabavka opreme | G32: =Godišnji!G31 -> 5000 | H32: 0 | I32: =SUM(G32:H32) -> 5000 | L32: =SUM(J32:K32) -> 0 | O32: =SUM(M32:N32) -> 0 | R32: =SUM(P32:Q32) -> 0 | S32: 0 | T32: 0 | U32: =SUM(S32:T32) -> 0
F33: Ukupno za korisnika Skupština Županije Posavske | G33: =G13+G17+G19+G30 -> 777510 | H33: =H13+H17+H19+H30 -> 0 | I33: 777510 | J33: 0 | K33: 0 | L33: 0 | M33: 0 | N33: 0 | O33: 0 | P33: 0 | Q33: 0 | R33: 0 | S33: 0 | T33: 0 | U33: 0
A35: 10 | B35: 01 | C35: 0002 | F35: STRUČNA SLUŽBA SKUPŠTINE
E36: 611000 | F36: Plaće i naknade troškova zaposlenih | G36: =SUM(G37:G39) -> 57480 | H36: =SUM(H37:H39) -> 0 | I36: 57480 | J36: 0 | K36: 0 | L36: 0 | M36: 0 | N36: 0 | O36: 0 | P36: 0 | Q36: 0 | R36: 0 | S36: 0 | T36: 0 | U36: 0
E37: 611100 | F37: Bruto plaće i naknade | G37: =Godišnji!G36 -> 44680 | H37: 0 | I37: =SUM(G37:H37) -> 44680 | L37: =SUM(J37:K37) -> 0 | O37: =SUM(M37:N37) -> 0 | R37: =SUM(P37:Q37) -> 0 | S37: =P37+M37+J37 -> 0 | T37: =Q37+N37+K37 -> 0 | U37: =SUM(S37:T37) -> 0
E38: 611200 | F38: Naknade troškova zaposlenih | G38: =Godišnji!G37 -> 12800 | H38: 0 | I38: =SUM(G38:H38) -> 12800 | L38: =SUM(J38:K38) -> 0 | O38: =SUM(M38:N38) -> 0 | R38: =SUM(P38:Q38) -> 0 | S38: =P38+M38+J38 -> 0 | T38: =Q38+N38+K38 -> 0 | U38: =SUM(S38:T38) -> 0
E39: 611200 | F39: Naknade troškova zaposlenih - volonteri | G39: =Godišnji!G38 -> 0 | H39: 0 | I39: 0 | L39: 0 | O39: 0 | R39: 0 | S39: 0 | T39: 0 | U39: 0
E40: 612000 | F40: Doprinosi poslodavca | G40: =Godišnji!G39 -> 5030 | H40: =H41 -> 0 | I40: 5030 | J40: 0 | K40: 0 | L40: 0 | M40: 0 | N40: 0 | O40: 0 | P40: 0 | Q40: 0 | R40: 0 | S40: 0 | T40: 0 | U40: 0
E41: 612100 | F41: Doprinosi poslodavca | G41: =Godišnji!G40 -> 5030 | H41: 0 | I41: =SUM(G41:H41) -> 5030 | L41: =SUM(J41:K41) -> 0 | O41: =SUM(M41:N41) -> 0 | R41: =SUM(P41:Q41) -> 0 | S41: =P41+M41+J41 -> 0 | T41: =Q41+N41+K41 -> 0 | U41: =SUM(S41:T41) -> 0
E42: 613000 | F42: Izdaci za materijal, sitan inventar i usluge | G42: =Godišnji!G41 -> 1050 | H42: =SUM(H43:H52) -> 0 | I42: 1050 | J42: 0 | K42: 0 | L42: 0 | M42: 0 | N42: 0 | O42: 0 | P42: 0 | Q42: 0 | R42: 0 | S42: 0 | T42: 0 | U42: 0
E43: 613100 | F43: Putni troškovi | G43: =Godišnji!G42 -> 500 | H43: 0 | I43: =SUM(G43:H43) -> 500 | L43: =SUM(J43:K43) -> 0 | O43: =SUM(M43:N43) -> 0 | R43: =SUM(P43:Q43) -> 0 | S43: =P43+M43+J43 -> 0 | T43: =Q43+N43+K43 -> 0 | U43: =SUM(S43:T43) -> 0
E44: 613200 | F44: Izdaci za energiju | G44: =Godišnji!G43 -> 0 | H44: 0 | I44: 0 | L44: 0 | O44: 0 | R44: 0 | S44: 0 | T44: 0 | U44: 0
E45: 613300 | F45: Izdaci za komunikaciju i komunalne usluge | G45: =Godišnji!G44 -> 0 | H45: 0 | I45: 0 | L45: 0 | O45: 0 | R45: 0 | S45: 0 | T45: 0 | U45: 0
E46: 613400 | F46: Nabava materijala i sitnog inventara | G46: =Godišnji!G45 -> 0 | H46: 0 | I46: 0 | L46: 0 | O46: 0 | R46: 0 | S46: 0 | T46: 0 | U46: 0
E47: 613500 | F47: Izdaci za usluge prijevoza i goriva | G47: =Godišnji!G46 -> 0 | H47: 0 | I47: 0 | L47: 0 | O47: 0 | R47: 0 | S47: 0 | T47: 0 | U47: 0
E48: 613600 | F48: Unajmljivanje imovine, opreme i nemat.imovine | G48: =Godišnji!G47 -> 0 | H48: 0 | I48: 0 | L48: 0 | O48: 0 | R48: 0 | S48: 0 | T48: 0 | U48: 0
E49: 613700 | F49: Izdaci za tekuće održavanje | G49: =Godišnji!G48 -> 0 | H49: 0 | I49: 0 | L49: 0 | O49: 0 | R49: 0 | S49: 0 | T49: 0 | U49: 0
E50: 613800 | F50: Izdaci osiguranja, bank.usluga i usluga PP | G50: =Godišnji!G49 -> 0 | H50: 0 | I50: 0 | L50: 0 | O50: 0 | R50: 0 | S50: 0 | T50: 0 | U50: 0
E51: 613900 | F51: Ugovorene i druge posebne usluge | G51: =Godišnji!G50 -> 550 | H51: 0 | I51: 550 | L51: 0 | O51: 0 | R51: 0 | S51: 0 | T51: 0 | U51: 0
E52: 613900 | F52: Ugovorene i druge posebne usluge - volonteri | G52: =Godišnji!G51 -> 0 | H52: 0 | I52: 0 | L52: 0 | O52: 0 | R52: 0 | S52: 0 | T52: 0 | U52: 0
E53: 821000 | F53: Izdaci za nabavku stalnih sredstava | G53: =Godišnji!G52 -> 0 | H53: =SUM(H54:H55) -> 0 | I53: 0 | J53: 0 | K53: 0 | L53: 0 | M53: 0 | N53: 0 | O53: 0 | P53: 0 | Q53: 0 | R53: 0 | S53: 0 | T53: 0 | U53: 0
E54: 821200 | F54: Nabavka građevina | G54: =Godišnji!G53 -> 0 | H54: 0 | I54: =SUM(G54:H54) -> 0 | L54: =SUM(J54:K54) -> 0 | O54: =SUM(M54:N54) -> 0 | R54: =SUM(P54:Q54) -> 0 | S54: =P54+M54+J54 -> 0 | T54: =Q54+N54+K54 -> 0 | U54: =SUM(S54:T54) -> 0
E55: 821300 | F55: Nabavka opreme | G55: =Godišnji!G54 -> 0 | H55: 0 | I55: =SUM(G55:H55) -> 0 | L55: =SUM(J55:K55) -> 0 | O55: =SUM(M55:N55) -> 0 | R55: =SUM(P55:Q55) -> 0 | S55: 0 | T55: 0 | U55: =SUM(S55:T55) -> 0
F56: Ukupno za korisnika Stručna služba Skupštine | G56: =G36+G40+G42+G53 -> 63560 | H56: =H36+H40+H42+H53 -> 0 | I56: 63560 | J56: 0 | K56: 0 | L56: 0 | M56: 0 | N56: 0 | O56: 0 | P56: 0 | Q56: 0 | R56: 0 | S56: 0 | T56: 0 | U56: 0
A58: 11 | B58: 01 | C58: 0001 | F58: VLADA ŽUPANIJE POSAVSKE
E59: 600000 | F59: Rashodi - tekuća pričuva | G59: =SUM(G60:G62) -> 645000 | H59: =SUM(H60:H62) -> 0 | I59: =SUM(I60:I62) -> 645000 | J59: 0 | K59: 0 | L59: 0 | M59: 0 | N59: 0 | O59: 0 | P59: 0 | Q59: 0 | R59: 0 | S59: 0 | T59: 0 | U59: 0
E60: 600000 | F60: Tekuća pričuva Vlade | G60: =Godišnji!G59 -> 600000 | H60: 0 | I60: =SUM(G60:H60) -> 600000 | L60: =SUM(J60:K60) -> 0 | O60: =SUM(M60:N60) -> 0 | R60: =SUM(P60:Q60) -> 0 | S60: =P60+M60+J60 -> 0 | T60: =Q60+N60+K60 -> 0 | U60: =SUM(S60:T60) -> 0
E61: 600000 | F61: Tekuća pričuva predsjednika Vlade | G61: =Godišnji!G60 -> 30000 | H61: 0 | I61: =SUM(G61:H61) -> 30000 | L61: =SUM(J61:K61) -> 0 | O61: =SUM(M61:N61) -> 0 | R61: =SUM(P61:Q61) -> 0 | S61: =P61+M61+J61 -> 0 | T61: =Q61+N61+K61 -> 0 | U61: =SUM(S61:T61) -> 0
E62: 600000 | F62: Tekuća pričuva zamjenika pred.Vlade | G62: =Godišnji!G61 -> 15000 | H62: 0 | I62: 15000 | L62: 0 | O62: 0 | R62: 0 | S62: 0 | T62: 0 | U62: 0
E63: 611000 | F63: Plaće i naknade troškova zaposlenih | G63: =SUM(G64:G66) -> 355500 | H63: =SUM(H64:H66) -> 0 | I63: =SUM(I64:I66) -> 355500 | J63: 0 | K63: 0 | L63: 0 | M63: 0 | N63: 0 | O63: 0 | P63: 0 | Q63: 0 | R63: 0 | S63: 0 | T63: 0 | U63: 0
E64: 611100 | F64: Bruto plaće i naknade | G64: =Godišnji!G63 -> 128000 | H64: 0 | I64: =SUM(G64:H64) -> 128000 | L64: =SUM(J64:K64) -> 0 | O64: =SUM(M64:N64) -> 0 | R64: =SUM(P64:Q64) -> 0 | S64: =P64+M64+J64 -> 0 | T64: =Q64+N64+K64 -> 0 | U64: =SUM(S64:T64) -> 0
E65: 611200 | F65: Naknade troškova zaposlenih | G65: =Godišnji!G64 -> 25600 | H65: 0 | I65: =SUM(G65:H65) -> 25600 | L65: =SUM(J65:K65) -> 0 | O65: =SUM(M65:N65) -> 0 | R65: =SUM(P65:Q65) -> 0 | S65: =P65+M65+J65 -> 0 | T65: =Q65+N65+K65 -> 0 | U65: =SUM(S65:T65) -> 0
E66: 611200 | F66: Naknade troškova zaposlenih - volonteri | G66: =Godišnji!G65 -> 201900 | H66: 0 | I66: 201900 | L66: 0 | O66: 0 | R66: 0 | S66: 0 | T66: 0 | U66: 0
E67: 612000 | F67: Doprinosi poslodavca | G67: =G68 -> 13760 | H67: =H68 -> 0 | I67: =I68 -> 13760 | J67: 0 | K67: 0 | L67: 0 | M67: 0 | N67: 0 | O67: 0 | P67: 0 | Q67: 0 | R67: 0 | S67: 0 | T67: 0 | U67: 0
E68: 612100 | F68: Doprinosi poslodavca | G68: =Godišnji!G67 -> 13760 | H68: 0 | I68: =SUM(G68:H68) -> 13760 | L68: =SUM(J68:K68) -> 0 | O68: =SUM(M68:N68) -> 0 | R68: =SUM(P68:Q68) -> 0 | S68: =P68+M68+J68 -> 0 | T68: =Q68+N68+K68 -> 0 | U68: =SUM(S68:T68) -> 0
E69: 613000 | F69: Izdaci za materijal, sitan inventar i usluge | G69: =SUM(G70:G80) -> 433260 | H69: =SUM(H70:H80) -> 0 | I69: =SUM(I70:I80) -> 433260 | J69: 0 | K69: 0 | L69: 0 | M69: 0 | N69: 0 | O69: 0 | P69: 0 | Q69: 0 | R69: 0 | S69: 0 | T69: 0 | U69: 0
E70: 613100 | F70: Putni troškovi | G70: =Godišnji!G69 -> 14000 | H70: 0 | I70: =SUM(G70:H70) -> 14000 | L70: =SUM(J70:K70) -> 0 | O70: =SUM(M70:N70) -> 0 | R70: =SUM(P70:Q70) -> 0 | S70: =P70+M70+J70 -> 0 | T70: =Q70+N70+K70 -> 0 | U70: =SUM(S70:T70) -> 0
E71: 613200 | F71: Izdaci za energiju | G71: =Godišnji!G70 -> 0 | H71: 0 | I71: 0 | L71: 0 | O71: 0 | R71: 0 | S71: 0 | T71: 0 | U71: 0
E72: 613300 | F72: Izdaci za komunikaciju i komunalne usluge | G72: 5500 | H72: 0 | I72: 5500 | L72: 0 | O72: 0 | R72: 0 | S72: 0 | T72: 0 | U72: 0
E73: 613400 | F73: Nabava materijala i sitnog inventara | G73: =Godišnji!G72 -> 1500 | H73: 0 | I73: 1500 | L73: 0 | O73: 0 | R73: 0 | S73: 0 | T73: 0 | U73: 0
E74: 613500 | F74: Izdaci za usluge prijevoza i goriva | G74: =Godišnji!G73 -> 1500 | H74: 0 | I74: 1500 | L74: 0 | O74: 0 | R74: 0 | S74: 0 | T74: 0 | U74: 0
E75: 613600 | F75: Unajmljivanje imovine, opreme i nemat.imovine | G75: =Godišnji!G74 -> 0 | H75: 0 | I75: 0 | L75: 0 | O75: 0 | R75: 0 | S75: 0 | T75: 0 | U75: 0
E76: 613700 | F76: Izdaci za tekuće održavanje | G76: =Godišnji!G75 -> 7000 | H76: 0 | I76: 7000 | L76: 0 | O76: 0 | R76: 0 | S76: 0 | T76: 0 | U76: 0
E77: 613800 | F77: Izdaci osiguranja, bank.usluga i usluga PP | G77: =Godišnji!G76 -> 3460 | H77: 0 | I77: 3460 | L77: 0 | O77: 0 | R77: 0 | S77: 0 | T77: 0 | U77: 0
E78: 613900 | F78: Ugovorene i druge posebne usluge | G78: =Godišnji!G77 -> 162100 | H78: 0 | I78: 162100 | L78: 0 | O78: 0 | R78: 0 | S78: 0 | T78: 0 | U78: 0
E79: 613900 | F79: Agencija za državnu službu | G79: =Godišnji!G78 -> 29500 | H79: 0 | I79: 29500 | L79: 0 | O79: 0 | R79: 0 | S79: 0 | T79: 0 | U79: 0
E80: 613900 | F80: Ugovorene i druge posebne usluge - volonteri | G80: =Godišnji!G79 -> 208700 | H80: 0 | I80: 208700 | L80: 0 | O80: 0 | R80: 0 | S80: 0 | T80: 0 | U80: 0
E81: 614000 | F81: Tekući grantovi i drugi tekući rashodi | G81: =SUM(G82:G92) -> 855000 | H81: =SUM(H82:H92) -> 0 | I81: =SUM(I82:I92) -> 855000 | J81: =SUM(J82:J92) -> 0 | K81: 0 | L81: =SUM(L82:L92) -> 0 | M81: =SUM(M82:M92) -> 0 | N81: 0 | O81: =SUM(O82:O92) -> 0 | P81: =SUM(P82:P92) -> 0 | Q81: 0 | R81: =SUM(R82:R92) -> 0 | S81: =SUM(S82:S92) -> 0 | T81: 0 | U81: =SUM(U82:U92) -> 0
E82: 614100 | F82: Grant za sanaciju teta uzrokovanih poplavom | G82: =Godišnji!G81 -> 100000 | H82: 0 | I82: =SUM(G82:H82) -> 100000 | L82: =SUM(J82:K82) -> 0 | O82: =SUM(M82:N82) -> 0 | R82: =SUM(P82:Q82) -> 0 | S82: =P82+M82+J82 -> 0 | T82: =Q82+N82+K82 -> 0 | U82: =SUM(S82:T82) -> 0
E83: 614100 | F83: Grant za Sveučilište u Mostaru | G83: =Godišnji!G82 -> 200000 | H83: 0 | I83: 200000 | L83: 0 | O83: 0 | R83: 0 | S83: 0 | T83: 0 | U83: 0
E84: 614200 | F84: Grant za sufinanc.nabavke udžbenika učenicima | G84: =Godišnji!G83 -> 150000 | H84: 0 | I84: 150000 | L84: 0 | O84: 0 | R84: 0 | S84: 0 | T84: 0 | U84: 0
E85: 614300 | F85: Grantovi nepro.organizacijama i udrugama građana | G85: =Godišnji!G84 -> 70000 | H85: 0 | I85: 70000 | L85: 0 | O85: 0 | R85: 0 | S85: 0 | T85: 0 | U85: 0
E86: 614300 | F86: Grant za Crveni križ Županije Posavske | G86: =Godišnji!G85 -> 35000 | H86: 0 | I86: 35000 | L86: 0 | O86: 0 | R86: 0 | S86: 0 | T86: 0 | U86: 0
E87: 614300 | F87: Grant za Kuću nade Odžak | G87: =Godišnji!G86 -> 40000 | H87: 0 | I87: 40000 | L87: 0 | O87: 0 | R87: 0 | S87: 0 | T87: 0 | U87: 0
E88: 614300 | F88: Grant za udr.roditelja djece s pos.potrebama Orašje | G88: =Godišnji!G87 -> 40000 | H88: 0 | I88: 40000 | L88: 0 | O88: 0 | R88: 0 | S88: 0 | T88: 0 | U88: 0
E89: 614300 | F89: Grant za udr.roditelja djce s pos.potr.Angelus Domalj. | G89: =Godišnji!G88 -> 15000 | H89: 0 | I89: 15000 | L89: 0 | O89: 0 | R89: 0 | S89: 0 | T89: 0 | U89: 0
E90: 614300 | F90: Grant za Gospodarsku komoru ŽP | G90: =Godišnji!G89 -> 30000 | H90: 0 | I90: 30000 | L90: 0 | O90: 0 | R90: 0 | S90: 0 | T90: 0 | U90: 0
E91: 614300 | F91: Grant za Obrtničku komoru ŽP | G91: =Godišnji!G90 -> 15000 | H91: 0 | I91: =SUM(G91:H91) -> 15000 | L91: =SUM(J91:K91) -> 0 | O91: =SUM(M91:N91) -> 0 | R91: =SUM(P91:Q91) -> 0 | S91: =P91+M91+J91 -> 0 | T91: =Q91+N91+K91 -> 0 | U91: =SUM(S91:T91) -> 0
E92: 614300 | F92: Grantovi političkim strankama | G92: =Godišnji!G91 -> 160000 | H92: 0 | I92: 160000 | L92: 0 | O92: 0 | R92: 0 | S92: 0 | T92: 0 | U92: 0
E93: 615000 | F93: Kapitalni grantovi | G93: =G94 -> 700000 | H93: =H94 -> 0 | I93: =I94 -> 700000 | J93: =J94 -> 0 | K93: 0 | L93: =L94 -> 0 | M93: =M94 -> 0 | N93: 0 | O93: =O94 -> 0 | P93: =P94 -> 0 | Q93: 0 | R93: =R94 -> 0 | S93: =S94 -> 0 | T93: 0 | U93: =U94 -> 0
E94: 615100 | F94: Kapitalni grantovi | G94: =Godišnji!G93 -> 700000 | H94: 0 | I94: =SUM(G94:H94) -> 700000 | L94: =SUM(J94:K94) -> 0 | O94: =SUM(M94:N94) -> 0 | R94: =SUM(P94:Q94) -> 0 | S94: =P94+M94+J94 -> 0 | T94: =Q94+N94+K94 -> 0 | U94: =SUM(S94:T94) -> 0
E95: 821000 | F95: Izdaci za nabavku stalnih sredstava | G95: =SUM(G96:G98) -> 10000 | H95: =SUM(H96:H98) -> 200000 | I95: 210000 | J95: 0 | K95: 0 | L95: 0 | M95: 0 | N95: 0 | O95: 0 | P95: 0 | Q95: 0 | R95: 0 | S95: 0 | T95: 0 | U95: 0
E96: 821200 | F96: Nabavka građevina | G96: =Godišnji!G95 -> 0 | H96: 0 | I96: =SUM(G96:H96) -> 0 | L96: =SUM(J96:K96) -> 0 | O96: =SUM(M96:N96) -> 0 | R96: =SUM(P96:Q96) -> 0 | S96: =P96+M96+J96 -> 0 | T96: =Q96+N96+K96 -> 0 | U96: =SUM(S96:T96) -> 0
E97: 821300 | F97: Nabavka opreme | G97: =Godišnji!G96 -> 10000 | H97: 0 | I97: =SUM(G97:H97) -> 10000 | L97: =SUM(J97:K97) -> 0 | O97: =SUM(M97:N97) -> 0 | R97: =SUM(P97:Q97) -> 0 | S97: 0 | T97: 0 | U97: =SUM(S97:T97) -> 0
E98: 821500 | F98: Nabavka stalnih sredstava u obliku prava | G98: =Godišnji!G97 -> 0 | H98: =Godišnji!H97 -> 200000 | I98: =SUM(G98:H98) -> 200000 | L98: =SUM(J98:K98) -> 0 | O98: =SUM(M98:N98) -> 0 | R98: =SUM(P98:Q98) -> 0 | S98: =P98+M98+J98 -> 0 | T98: =Q98+N98+K98 -> 0 | U98: =SUM(S98:T98) -> 0
F99: Ukupno za korisnika Vlada Županije Posavske | G99: =G59+G63+G67+G69+G81+G93+G95 -> 3012520 | H99: 200000 | I99: 3212520 | J99: 0 | K99: 0 | L99: 0 | M99: 0 | N99: 0 | O99: 0 | P99: 0 | Q99: 0 | R99: 0 | S99: 0 | T99: 0 | U99: 0
A101: 11 | B101: 01 | C101: 0002 | F101: URED ZA RASELJENE
E102: 611000 | F102: Plaće i naknade troškova zaposlenih | G102: =SUM(G103:G105) -> 55690 | H102: =SUM(H103:H105) -> 0 | I102: 55690 | J102: 0 | K102: 0 | L102: 0 | M102: 0 | N102: 0 | O102: 0 | P102: 0 | Q102: 0 | R102: 0 | S102: 0 | T102: 0 | U102: 0
E103: 611100 | F103: Bruto plaće i naknade | G103: =Godišnji!G102 -> 46450 | H103: 0 | I103: =SUM(G103:H103) -> 46450 | L103: =SUM(J103:K103) -> 0 | O103: =SUM(M103:N103) -> 0 | R103: =SUM(P103:Q103) -> 0 | S103: =P103+M103+J103 -> 0 | T103: =Q103+N103+K103 -> 0 | U103: =SUM(S103:T103) -> 0
E104: 611200 | F104: Naknade troškova zaposlenih | G104: =Godišnji!G103 -> 9240 | H104: 0 | I104: =SUM(G104:H104) -> 9240 | L104: =SUM(J104:K104) -> 0 | O104: =SUM(M104:N104) -> 0 | R104: =SUM(P104:Q104) -> 0 | S104: =P104+M104+J104 -> 0 | T104: =Q104+N104+K104 -> 0 | U104: =SUM(S104:T104) -> 0
E105: 611200 | F105: Naknade troškova zaposlenih - volonteri | G105: =Godišnji!G104 -> 0 | H105: 0 | I105: 0 | L105: 0 | O105: 0 | R105: 0 | S105: 0 | T105: 0 | U105: 0
E106: 612000 | F106: Doprinosi poslodavca | G106: =G107 -> 6350 | H106: =H107 -> 0 | I106: 6350 | J106: 0 | K106: 0 | L106: 0 | M106: 0 | N106: 0 | O106: 0 | P106: 0 | Q106: 0 | R106: 0 | S106: 0 | T106: 0 | U106: 0
E107: 612100 | F107: Doprinosi poslodavca | G107: =Godišnji!G106 -> 6350 | H107: 0 | I107: =SUM(G107:H107) -> 6350 | L107: =SUM(J107:K107) -> 0 | O107: =SUM(M107:N107) -> 0 | R107: =SUM(P107:Q107) -> 0 | S107: =P107+M107+J107 -> 0 | T107: =Q107+N107+K107 -> 0 | U107: =SUM(S107:T107) -> 0
E108: 613000 | F108: Izdaci za materijal, sitan inventar i usluge | G108: =SUM(G109:G118) -> 4000 | H108: =SUM(H109:H118) -> 0 | I108: 4000 | J108: 0 | K108: 0 | L108: 0 | M108: 0 | N108: 0 | O108: 0 | P108: 0 | Q108: 0 | R108: 0 | S108: 0 | T108: 0 | U108: 0
E109: 613100 | F109: Putni troškovi | G109: =Godišnji!G108 -> 500 | H109: 0 | I109: =SUM(G109:H109) -> 500 | L109: =SUM(J109:K109) -> 0 | O109: =SUM(M109:N109) -> 0 | R109: =SUM(P109:Q109) -> 0 | S109: =P109+M109+J109 -> 0 | T109: =Q109+N109+K109 -> 0 | U109: =SUM(S109:T109) -> 0
E110: 613200 | F110: Izdaci za energiju | G110: =Godišnji!G109 -> 0 | H110: 0 | I110: 0 | L110: 0 | O110: 0 | R110: 0 | S110: 0 | T110: 0 | U110: 0
E111: 613300 | F111: Izdaci za komunikaciju i komunalne usluge | G111: =Godišnji!G110 -> 1100 | H111: 0 | I111: 1100 | L111: 0 | O111: 0 | R111: 0 | S111: 0 | T111: 0 | U111: 0
E112: 613400 | F112: Nabava materijala i sitnog inventara | G112: =Godišnji!G111 -> 0 | H112: 0 | I112: 0 | L112: 0 | O112: 0 | R112: 0 | S112: 0 | T112: 0 | U112: 0
E113: 613500 | F113: Izdaci za usluge prijevoza i goriva | G113: =Godišnji!G112 -> 0 | H113: 0 | I113: 0 | L113: 0 | O113: 0 | R113: 0 | S113: 0 | T113: 0 | U113: 0
E114: 613600 | F114: Unajmljivanje imovine, opreme i nemat.imovine | G114: =Godišnji!G113 -> 0 | H114: 0 | I114: 0 | L114: 0 | O114: 0 | R114: 0 | S114: 0 | T114: 0 | U114: 0
E115: 613700 | F115: Izdaci za tekuće održavanje | G115: =Godišnji!G114 -> 400 | H115: 0 | I115: 400 | L115: 0 | O115: 0 | R115: 0 | S115: 0 | T115: 0 | U115: 0
E116: 613800 | F116: Izdaci osiguranja, bank.usluga i usluga PP | G116: =Godišnji!G115 -> 0 | H116: 0 | I116: 0 | L116: 0 | O116: 0 | R116: 0 | S116: 0 | T116: 0 | U116: 0
E117: 613900 | F117: Ugovorene i druge posebne usluge | G117: =Godišnji!G116 -> 2000 | H117: 0 | I117: 2000 | L117: 0 | O117: 0 | R117: 0 | S117: 0 | T117: 0 | U117: 0
E118: 613900 | F118: Ugovorene i druge posebne usluge - volonteri | G118: =Godišnji!G117 -> 0 | H118: 0 | I118: 0 | L118: 0 | O118: 0 | R118: 0 | S118: 0 | T118: 0 | U118: 0
E119: 614000 | F119: Tekući grantovi i drugi tekući rashodi | G119: =G120 -> 20000 | H119: 0 | I119: 20000 | J119: 0 | K119: 0 | L119: 0 | M119: 0 | N119: 0 | O119: 0 | P119: 0 | Q119: 0 | R119: 0 | S119: 0 | T119: 0 | U119: 0
E120: 614200 | F120: Grantovi za povratak raseljenih osoba | G120: =Godišnji!G119 -> 20000 | H120: 0 | I120: =SUM(G120:H120) -> 20000 | L120: =SUM(J120:K120) -> 0 | O120: =SUM(M120:N120) -> 0 | R120: =SUM(P120:Q120) -> 0 | S120: =P120+M120+J120 -> 0 | T120: =Q120+N120+K120 -> 0 | U120: =SUM(S120:T120) -> 0
E121: 821000 | F121: Izdaci za nabavku stalnih sredstava | G121: =SUM(G122:G123) -> 1000 | H121: =SUM(H122:H123) -> 0 | I121: 1000 | J121: 0 | K121: 0 | L121: 0 | M121: 0 | N121: 0 | O121: 0 | P121: 0 | Q121: 0 | R121: 0 | S121: 0 | T121: 0 | U121: 0
E122: 821200 | F122: Nabavka građevina | G122: =Godišnji!G121 -> 0 | H122: 0 | I122: =SUM(G122:H122) -> 0 | L122: =SUM(J122:K122) -> 0 | O122: =SUM(M122:N122) -> 0 | R122: =SUM(P122:Q122) -> 0 | S122: =P122+M122+J122 -> 0 | T122: =Q122+N122+K122 -> 0 | U122: =SUM(S122:T122) -> 0
E123: 821300 | F123: Nabavka opreme | G123: =Godišnji!G122 -> 1000 | H123: 0 | I123: =SUM(G123:H123) -> 1000 | L123: =SUM(J123:K123) -> 0 | O123: =SUM(M123:N123) -> 0 | R123: =SUM(P123:Q123) -> 0 | S123: 0 | T123: 0 | U123: =SUM(S123:T123) -> 0
F124: Ukupno za korisnika Ured za raseljene | G124: =G102+G106+G108+G119+G121 -> 87040 | H124: =H102+H106+H108+H119+H121 -> 0 | I124: 87040 | J124: 0 | K124: 0 | L124: 0 | M124: 0 | N124: 0 | O124: 0 | P124: 0 | Q124: 0 | R124: 0 | S124: 0 | T124: 0 | U124: 0
A126: 11 | B126: 01 | C126: 0003 | F126: URED ZA ZAKONODAVSTVO
E127: 611000 | F127: Plaće i naknade troškova zaposlenih | G127: =SUM(G128:G130) -> 47610 | H127: =SUM(H128:H130) -> 0 | I127: 47610 | J127: 0 | K127: 0 | L127: 0 | M127: 0 | N127: 0 | O127: 0 | P127: 0 | Q127: 0 | R127: 0 | S127: 0 | T127: 0 | U127: 0
E128: 611100 | F128: Bruto plaće i naknade | G128: =Godišnji!G127 -> 42300 | H128: 0 | I128: =SUM(G128:H128) -> 42300 | L128: =SUM(J128:K128) -> 0 | O128: =SUM(M128:N128) -> 0 | R128: =SUM(P128:Q128) -> 0 | S128: =P128+M128+J128 -> 0 | T128: =Q128+N128+K128 -> 0 | U128: =SUM(S128:T128) -> 0
E129: 611200 | F129: Naknade troškova zaposlenih | G129: =Godišnji!G128 -> 5310 | H129: 0 | I129: =SUM(G129:H129) -> 5310 | L129: =SUM(J129:K129) -> 0 | O129: =SUM(M129:N129) -> 0 | R129: =SUM(P129:Q129) -> 0 | S129: =P129+M129+J129 -> 0 | T129: =Q129+N129+K129 -> 0 | U129: =SUM(S129:T129) -> 0
E130: 611200 | F130: Naknade troškova zaposlenih - volonteri | G130: =Godišnji!G129 -> 0 | H130: 0 | I130: 0 | L130: 0 | O130: 0 | R130: 0 | S130: 0 | T130: 0 | U130: 0
E131: 612000 | F131: Doprinosi poslodavca | G131: =G132 -> 4660 | H131: =H132 -> 0 | I131: 4660 | J131: 0 | K131: 0 | L131: 0 | M131: 0 | N131: 0 | O131: 0 | P131: 0 | Q131: 0 | R131: 0 | S131: 0 | T131: 0 | U131: 0
E132: 612100 | F132: Doprinosi poslodavca | G132: =Godišnji!G131 -> 4660 | H132: 0 | I132: =SUM(G132:H132) -> 4660 | L132: =SUM(J132:K132) -> 0 | O132: =SUM(M132:N132) -> 0 | R132: =SUM(P132:Q132) -> 0 | S132: =P132+M132+J132 -> 0 | T132: =Q132+N132+K132 -> 0 | U132: =SUM(S132:T132) -> 0
E133: 613000 | F133: Izdaci za materijal, sitan inventar i usluge | G133: =SUM(G134:G143) -> 8300 | H133: =SUM(H134:H143) -> 0 | I133: 8300 | J133: 0 | K133: 0 | L133: 0 | M133: 0 | N133: 0 | O133: 0 | P133: 0 | Q133: 0 | R133: 0 | S133: 0 | T133: 0 | U133: 0
E134: 613100 | F134: Putni troškovi | G134: =Godišnji!G133 -> 300 | H134: 0 | I134: =SUM(G134:H134) -> 300 | L134: =SUM(J134:K134) -> 0 | O134: =SUM(M134:N134) -> 0 | R134: =SUM(P134:Q134) -> 0 | S134: =P134+M134+J134 -> 0 | T134: =Q134+N134+K134 -> 0 | U134: =SUM(S134:T134) -> 0
E135: 613200 | F135: Izdaci za energiju | G135: =Godišnji!G134 -> 0 | H135: 0 | I135: 0 | L135: 0 | O135: 0 | R135: 0 | S135: 0 | T135: 0 | U135: 0
E136: 613300 | F136: Izdaci za komunikaciju i komunalne usluge | G136: =Godišnji!G135 -> 0 | H136: 0 | I136: 0 | L136: 0 | O136: 0 | R136: 0 | S136: 0 | T136: 0 | U136: 0
E137: 613400 | F137: Nabava materijala i sitnog inventara | G137: =Godišnji!G136 -> 0 | H137: 0 | I137: 0 | L137: 0 | O137: 0 | R137: 0 | S137: 0 | T137: 0 | U137: 0
E138: 613500 | F138: Izdaci za usluge prijevoza i goriva | G138: =Godišnji!G137 -> 0 | H138: 0 | I138: 0 | L138: 0 | O138: 0 | R138: 0 | S138: 0 | T138: 0 | U138: 0
E139: 613600 | F139: Unajmljivanje imovine, opreme i nemat.imovine | G139: =Godišnji!G138 -> 0 | H139: 0 | I139: 0 | L139: 0 | O139: 0 | R139: 0 | S139: 0 | T139: 0 | U139: 0
E140: 613700 | F140: Izdaci za tekuće održavanje | G140: =Godišnji!G139 -> 0 | H140: 0 | I140: 0 | L140: 0 | O140: 0 | R140: 0 | S140: 0 | T140: 0 | U140: 0
E141: 613800 | F141: Izdaci osiguranja, bank.usluga i usluga PP | G141: =Godišnji!G140 -> 0 | H141: 0 | I141: 0 | L141: 0 | O141: 0 | R141: 0 | S141: 0 | T141: 0 | U141: 0
E142: 613900 | F142: Ugovorene i druge posebne usluge | G142: =Godišnji!G141 -> 8000 | H142: 0 | I142: 8000 | L142: 0 | O142: 0 | R142: 0 | S142: 0 | T142: 0 | U142: 0
E143: 613900 | F143: Ugovorene i druge posebne usluge - volonteri | G143: =Godišnji!G142 -> 0 | H143: 0 | I143: 0 | L143: 0 | O143: 0 | R143: 0 | S143: 0 | T143: 0 | U143: 0
E144: 821000 | F144: Izdaci za nabavku stalnih sredstava | G144: =SUM(G145:G146) -> 1500 | H144: =SUM(H145:H146) -> 0 | I144: 1500 | J144: 0 | K144: 0 | L144: 0 | M144: 0 | N144: 0 | O144: 0 | P144: 0 | Q144: 0 | R144: 0 | S144: 0 | T144: 0 | U144: 0
E145: 821200 | F145: Nabavka građevina | G145: =Godišnji!G144 -> 0 | H145: 0 | I145: =SUM(G145:H145) -> 0 | L145: =SUM(J145:K145) -> 0 | O145: =SUM(M145:N145) -> 0 | R145: =SUM(P145:Q145) -> 0 | S145: =P145+M145+J145 -> 0 | T145: =Q145+N145+K145 -> 0 | U145: =SUM(S145:T145) -> 0
E146: 821300 | F146: Nabavka opreme | G146: =Godišnji!G145 -> 1500 | H146: 0 | I146: =SUM(G146:H146) -> 1500 | L146: =SUM(J146:K146) -> 0 | O146: =SUM(M146:N146) -> 0 | R146: =SUM(P146:Q146) -> 0 | S146: 0 | T146: 0 | U146: =SUM(S146:T146) -> 0
F147: Ukupno za korisnika Ured za zakonodavstvo | G147: =G127+G131+G133+G144 -> 62070 | H147: =H127+H131+H133+H144 -> 0 | I147: 62070 | J147: 0 | K147: 0 | L147: 0 | M147: 0 | N147: 0 | O147: 0 | P147: 0 | Q147: 0 | R147: 0 | S147: 0 | T147: 0 | U147: 0
A149: 11 | B149: 01 | C149: 0004 | F149: SLUŽBA ZA ODNOSE S JAVNOŠĆU
E150: 611000 | F150: Plaće i naknade troškova zaposlenih | G150: =SUM(G151:G153) -> 75970 | H150: =SUM(H151:H153) -> 0 | I150: 75970 | J150: 0 | K150: 0 | L150: 0 | M150: 0 | N150: 0 | O150: 0 | P150: 0 | Q150: 0 | R150: 0 | S150: 0 | T150: 0 | U150: 0
E151: 611100 | F151: Bruto plaće i naknade | G151: =Godišnji!G150 -> 64730 | H151: 0 | I151: =SUM(G151:H151) -> 64730 | L151: =SUM(J151:K151) -> 0 | O151: =SUM(M151:N151) -> 0 | R151: =SUM(P151:Q151) -> 0 | S151: =P151+M151+J151 -> 0 | T151: =Q151+N151+K151 -> 0 | U151: =SUM(S151:T151) -> 0
E152: 611200 | F152: Naknade troškova zaposlenih | G152: =Godišnji!G151 -> 11240 | H152: 0 | I152: =SUM(G152:H152) -> 11240 | L152: =SUM(J152:K152) -> 0 | O152: =SUM(M152:N152) -> 0 | R152: =SUM(P152:Q152) -> 0 | S152: =P152+M152+J152 -> 0 | T152: =Q152+N152+K152 -> 0 | U152: =SUM(S152:T152) -> 0
E153: 611200 | F153: Naknade troškova zaposlenih - volonteri | G153: =Godišnji!G152 -> 0 | H153: 0 | I153: 0 | L153: 0 | O153: 0 | R153: 0 | S153: 0 | T153: 0 | U153: 0
E154: 612000 | F154: Doprinosi poslodavca | G154: =G155 -> 7000 | H154: =H155 -> 0 | I154: 7000 | J154: 0 | K154: 0 | L154: 0 | M154: 0 | N154: 0 | O154: 0 | P154: 0 | Q154: 0 | R154: 0 | S154: 0 | T154: 0 | U154: 0
E155: 612100 | F155: Doprinosi poslodavca | G155: =Godišnji!G154 -> 7000 | H155: 0 | I155: =SUM(G155:H155) -> 7000 | L155: =SUM(J155:K155) -> 0 | O155: =SUM(M155:N155) -> 0 | R155: =SUM(P155:Q155) -> 0 | S155: =P155+M155+J155 -> 0 | T155: =Q155+N155+K155 -> 0 | U155: =SUM(S155:T155) -> 0
E156: 613000 | F156: Izdaci za materijal, sitan inventar i usluge | G156: =SUM(G157:G166) -> 5900 | H156: =SUM(H157:H166) -> 0 | I156: 5900 | J156: 0 | K156: 0 | L156: 0 | M156: 0 | N156: 0 | O156: 0 | P156: 0 | Q156: 0 | R156: 0 | S156: 0 | T156: 0 | U156: 0
E157: 613100 | F157: Putni troškovi | G157: =Godišnji!G156 -> 1000 | H157: 0 | I157: =SUM(G157:H157) -> 1000 | L157: =SUM(J157:K157) -> 0 | O157: =SUM(M157:N157) -> 0 | R157: =SUM(P157:Q157) -> 0 | S157: =P157+M157+J157 -> 0 | T157: =Q157+N157+K157 -> 0 | U157: =SUM(S157:T157) -> 0
E158: 613200 | F158: Izdaci za energiju | G158: =Godišnji!G157 -> 0 | H158: 0 | I158: 0 | L158: 0 | O158: 0 | R158: 0 | S158: 0 | T158: 0 | U158: 0
E159: 613300 | F159: Izdaci za komunikaciju i komunalne usluge | G159: =Godišnji!G158 -> 2500 | H159: 0 | I159: 2500 | L159: 0 | O159: 0 | R159: 0 | S159: 0 | T159: 0 | U159: 0
E160: 613400 | F160: Nabava materijala i sitnog inventara | G160: =Godišnji!G159 -> 500 | H160: 0 | I160: 500 | L160: 0 | O160: 0 | R160: 0 | S160: 0 | T160: 0 | U160: 0
E161: 613500 | F161: Izdaci za usluge prijevoza i goriva | G161: =Godišnji!G160 -> 0 | H161: 0 | I161: 0 | L161: 0 | O161: 0 | R161: 0 | S161: 0 | T161: 0 | U161: 0
E162: 613600 | F162: Unajmljivanje imovine, opreme i nemat.imovine | G162: =Godišnji!G161 -> 0 | H162: 0 | I162: 0 | L162: 0 | O162: 0 | R162: 0 | S162: 0 | T162: 0 | U162: 0
E163: 613700 | F163: Izdaci za tekuće održavanje | G163: =Godišnji!G162 -> 400 | H163: 0 | I163: 400 | L163: 0 | O163: 0 | R163: 0 | S163: 0 | T163: 0 | U163: 0
E164: 613800 | F164: Izdaci osiguranja, bank.usluga i usluga PP | G164: =Godišnji!G163 -> 0 | H164: 0 | I164: 0 | L164: 0 | O164: 0 | R164: 0 | S164: 0 | T164: 0 | U164: 0
E165: 613900 | F165: Ugovorene i druge posebne usluge | G165: =Godišnji!G164 -> 1500 | H165: 0 | I165: 1500 | L165: 0 | O165: 0 | R165: 0 | S165: 0 | T165: 0 | U165: 0
E166: 613900 | F166: Ugovorene i druge posebne usluge - volonteri | G166: =Godišnji!G165 -> 0 | H166: 0 | I166: 0 | L166: 0 | O166: 0 | R166: 0 | S166: 0 | T166: 0 | U166: 0
E167: 821000 | F167: Izdaci za nabavku stalnih sredstava | G167: =SUM(G168:G169) -> 1500 | H167: =SUM(H168:H169) -> 0 | I167: 1500 | J167: 0 | K167: 0 | L167: 0 | M167: 0 | N167: 0 | O167: 0 | P167: 0 | Q167: 0 | R167: 0 | S167: 0 | T167: 0 | U167: 0
E168: 821200 | F168: Nabavka građevina | G168: =Godišnji!G167 -> 0 | H168: 0 | I168: =SUM(G168:H168) -> 0 | L168: =SUM(J168:K168) -> 0 | O168: =SUM(M168:N168) -> 0 | R168: =SUM(P168:Q168) -> 0 | S168: =P168+M168+J168 -> 0 | T168: =Q168+N168+K168 -> 0 | U168: =SUM(S168:T168) -> 0
E169: 821300 | F169: Nabavka opreme | G169: =Godišnji!G168 -> 1500 | H169: 0 | I169: =SUM(G169:H169) -> 1500 | L169: =SUM(J169:K169) -> 0 | O169: =SUM(M169:N169) -> 0 | R169: =SUM(P169:Q169) -> 0 | S169: 0 | T169: 0 | U169: =SUM(S169:T169) -> 0
F170: Ukupno za korisnika Služba za odnose s javnošću | G170: =G150+G154+G156+G167 -> 90370 | H170: =H150+H154+H156+H167 -> 0 | I170: 90370 | J170: 0 | K170: 0 | L170: 0 | M170: 0 | N170: 0 | O170: 0 | P170: 0 | Q170: 0 | R170: 0 | S170: 0 | T170: 0 | U170: 0
A172: 11 | B172: 01 | C172: 0005 | F172: URED ZA RAZVOJ I EUROPSKE INTEGRACIJE
E173: 611000 | F173: Plaće i naknade troškova zaposlenih | G173: =SUM(G174:G176) -> 158190 | H173: =SUM(H174:H176) -> 0 | I173: 158190 | J173: 0 | K173: 0 | L173: 0 | M173: 0 | N173: 0 | O173: 0 | P173: 0 | Q173: 0 | R173: 0 | S173: 0 | T173: 0 | U173: 0
E174: 611100 | F174: Bruto plaće i naknade | G174: =Godišnji!G173 -> 126850 | H174: 0 | I174: =SUM(G174:H174) -> 126850 | L174: =SUM(J174:K174) -> 0 | O174: =SUM(M174:N174) -> 0 | R174: =SUM(P174:Q174) -> 0 | S174: =P174+M174+J174 -> 0 | T174: =Q174+N174+K174 -> 0 | U174: =SUM(S174:T174) -> 0
E175: 611200 | F175: Naknade troškova zaposlenih | G175: =Godišnji!G174 -> 31340 | H175: 0 | I175: =SUM(G175:H175) -> 31340 | L175: =SUM(J175:K175) -> 0 | O175: =SUM(M175:N175) -> 0 | R175: =SUM(P175:Q175) -> 0 | S175: =P175+M175+J175 -> 0 | T175: =Q175+N175+K175 -> 0 | U175: =SUM(S175:T175) -> 0
E176: 611200 | F176: Naknade troškova zaposlenih - volonteri | G176: =Godišnji!G175 -> 0 | H176: 0 | I176: 0 | L176: 0 | O176: 0 | R176: 0 | S176: 0 | T176: 0 | U176: 0
E177: 612000 | F177: Doprinosi poslodavca | G177: =G178 -> 14010 | H177: =H178 -> 0 | I177: 14010 | J177: 0 | K177: 0 | L177: 0 | M177: 0 | N177: 0 | O177: 0 | P177: 0 | Q177: 0 | R177: 0 | S177: 0 | T177: 0 | U177: 0
E178: 612100 | F178: Doprinosi poslodavca | G178: =Godišnji!G177 -> 14010 | H178: 0 | I178: =SUM(G178:H178) -> 14010 | L178: =SUM(J178:K178) -> 0 | O178: =SUM(M178:N178) -> 0 | R178: =SUM(P178:Q178) -> 0 | S178: =P178+M178+J178 -> 0 | T178: =Q178+N178+K178 -> 0 | U178: =SUM(S178:T178) -> 0
E179: 613000 | F179: Izdaci za materijal, sitan inventar i usluge | G179: =SUM(G180:G189) -> 10400 | H179: =SUM(H180:H189) -> 0 | I179: 10400 | J179: 0 | K179: 0 | L179: 0 | M179: 0 | N179: 0 | O179: 0 | P179: 0 | Q179: 0 | R179: 0 | S179: 0 | T179: 0 | U179: 0
E180: 613100 | F180: Putni troškovi | G180: =Godišnji!G179 -> 5000 | H180: 0 | I180: =SUM(G180:H180) -> 5000 | L180: =SUM(J180:K180) -> 0 | O180: =SUM(M180:N180) -> 0 | R180: =SUM(P180:Q180) -> 0 | S180: =P180+M180+J180 -> 0 | T180: =Q180+N180+K180 -> 0 | U180: =SUM(S180:T180) -> 0
E181: 613200 | F181: Izdaci za energiju | G181: =Godišnji!G180 -> 0 | H181: 0 | I181: 0 | L181: 0 | O181: 0 | R181: 0 | S181: 0 | T181: 0 | U181: 0
E182: 613300 | F182: Izdaci za komunikaciju i komunalne usluge | G182: =Godišnji!G181 -> 1200 | H182: 0 | I182: 1200 | L182: 0 | O182: 0 | R182: 0 | S182: 0 | T182: 0 | U182: 0
E183: 613400 | F183: Nabava materijala i sitnog inventara | G183: =Godišnji!G182 -> 1000 | H183: 0 | I183: 1000 | L183: 0 | O183: 0 | R183: 0 | S183: 0 | T183: 0 | U183: 0
E184: 613500 | F184: Izdaci za usluge prijevoza i goriva | G184: =Godišnji!G183 -> 0 | H184: 0 | I184: 0 | L184: 0 | O184: 0 | R184: 0 | S184: 0 | T184: 0 | U184: 0
E185: 613600 | F185: Unajmljivanje imovine, opreme i nemat.imovine | G185: =Godišnji!G184 -> 0 | H185: 0 | I185: 0 | L185: 0 | O185: 0 | R185: 0 | S185: 0 | T185: 0 | U185: 0
E186: 613700 | F186: Izdaci za tekuće održavanje | G186: =Godišnji!G185 -> 700 | H186: 0 | I186: 700 | L186: 0 | O186: 0 | R186: 0 | S186: 0 | T186: 0 | U186: 0
E187: 613800 | F187: Izdaci osiguranja, bank.usluga i usluga PP | G187: =Godišnji!G186 -> 0 | H187: 0 | I187: 0 | L187: 0 | O187: 0 | R187: 0 | S187: 0 | T187: 0 | U187: 0
E188: 613900 | F188: Ugovorene i druge posebne usluge | G188: =Godišnji!G187 -> 2500 | H188: 0 | I188: 2500 | L188: 0 | O188: 0 | R188: 0 | S188: 0 | T188: 0 | U188: 0
E189: 613900 | F189: Ugovorene i druge posebne usluge - volonteri | G189: =Godišnji!G188 -> 0 | H189: 0 | I189: 0 | L189: 0 | O189: 0 | R189: 0 | S189: 0 | T189: 0 | U189: 0
E190: 821000 | F190: Izdaci za nabavku stalnih sredstava | G190: =SUM(G191:G192) -> 7000 | H190: =SUM(H191:H192) -> 0 | I190: 7000 | J190: 0 | K190: 0 | L190: 0 | M190: 0 | N190: 0 | O190: 0 | P190: 0 | Q190: 0 | R190: 0 | S190: 0 | T190: 0 | U190: 0
E191: 821200 | F191: Nabavka građevina | G191: =Godišnji!G190 -> 0 | H191: 0 | I191: =SUM(G191:H191) -> 0 | L191: =SUM(J191:K191) -> 0 | O191: =SUM(M191:N191) -> 0 | R191: =SUM(P191:Q191) -> 0 | S191: =P191+M191+J191 -> 0 | T191: =Q191+N191+K191 -> 0 | U191: =SUM(S191:T191) -> 0
E192: 821300 | F192: Nabavka opreme | G192: =Godišnji!G191 -> 7000 | H192: 0 | I192: =SUM(G192:H192) -> 7000 | L192: =SUM(J192:K192) -> 0 | O192: =SUM(M192:N192) -> 0 | R192: =SUM(P192:Q192) -> 0 | S192: 0 | T192: 0 | U192: =SUM(S192:T192) -> 0
F193: Ukupno za korisnika Ured za gospodarski razvoj ŽP | G193: =G173+G177+G179+G190 -> 189600 | H193: =H173+H177+H179+H190 -> 0 | I193: 189600 | J193: 0 | K193: 0 | L193: 0 | M193: 0 | N193: 0 | O193: 0 | P193: 0 | Q193: 0 | R193: 0 | S193: 0 | T193: 0 | U193: 0
A195: 12 | B195: 01 | C195: 0001 | F195: ZAJEDNIČKA SLUŽBA VLADE
E196: 611000 | F196: Plaće i naknade troškova zaposlenih | G196: =SUM(G197:G199) -> 267560 | H196: =SUM(H197:H199) -> 0 | I196: 267560 | J196: 0 | K196: 0 | L196: 0 | M196: 0 | N196: 0 | O196: 0 | P196: 0 | Q196: 0 | R196: 0 | S196: 0 | T196: 0 | U196: 0
E197: 611100 | F197: Bruto plaće i naknade | G197: =Godišnji!G196 -> 209740 | H197: 0 | I197: =SUM(G197:H197) -> 209740 | L197: =SUM(J197:K197) -> 0 | O197: =SUM(M197:N197) -> 0 | R197: =SUM(P197:Q197) -> 0 | S197: =P197+M197+J197 -> 0 | T197: =Q197+N197+K197 -> 0 | U197: =SUM(S197:T197) -> 0
E198: 611200 | F198: Naknade troškova zaposlenih | G198: =Godišnji!G197 -> 57820 | H198: 0 | I198: =SUM(G198:H198) -> 57820 | L198: =SUM(J198:K198) -> 0 | O198: =SUM(M198:N198) -> 0 | R198: =SUM(P198:Q198) -> 0 | S198: =P198+M198+J198 -> 0 | T198: =Q198+N198+K198 -> 0 | U198: =SUM(S198:T198) -> 0
E199: 611200 | F199: Naknade troškova zaposlenih - volonteri | G199: =Godišnji!G198 -> 0 | H199: 0 | I199: 0 | L199: 0 | O199: 0 | R199: 0 | S199: 0 | T199: 0 | U199: 0
E200: 612000 | F200: Doprinosi poslodavca | G200: =G201 -> 22720 | H200: =H201 -> 0 | I200: 22720 | J200: 0 | K200: 0 | L200: 0 | M200: 0 | N200: 0 | O200: 0 | P200: 0 | Q200: 0 | R200: 0 | S200: 0 | T200: 0 | U200: 0
E201: 612100 | F201: Doprinosi poslodavca | G201: =Godišnji!G200 -> 22720 | H201: 0 | I201: =SUM(G201:H201) -> 22720 | L201: =SUM(J201:K201) -> 0 | O201: =SUM(M201:N201) -> 0 | R201: =SUM(P201:Q201) -> 0 | S201: =P201+M201+J201 -> 0 | T201: =Q201+N201+K201 -> 0 | U201: =SUM(S201:T201) -> 0
E202: 613000 | F202: Izdaci za materijal, sitan inventar i usluge | G202: =SUM(G203:G212) -> 403500 | H202: =SUM(H203:H212) -> 0 | I202: 403500 | J202: 0 | K202: 0 | L202: 0 | M202: 0 | N202: 0 | O202: 0 | P202: 0 | Q202: 0 | R202: 0 | S202: 0 | T202: 0 | U202: 0
E203: 613100 | F203: Putni troškovi | G203: =Godišnji!G202 -> 7000 | H203: 0 | I203: =SUM(G203:H203) -> 7000 | L203: =SUM(J203:K203) -> 0 | O203: =SUM(M203:N203) -> 0 | R203: =SUM(P203:Q203) -> 0 | S203: =P203+M203+J203 -> 0 | T203: =Q203+N203+K203 -> 0 | U203: =SUM(S203:T203) -> 0
E204: 613200 | F204: Izdaci za energiju | G204: =Godišnji!G203 -> 104000 | H204: 0 | I204: 104000 | L204: 0 | O204: 0 | R204: 0 | S204: 0 | T204: 0 | U204: 0
E205: 613300 | F205: Izdaci za komunikaciju i komunalne usluge | G205: =Godišnji!G204 -> 44000 | H205: 0 | I205: 44000 | L205: 0 | O205: 0 | R205: 0 | S205: 0 | T205: 0 | U205: 0
E206: 613400 | F206: Nabava materijala i sitnog inventara | G206: =Godišnji!G205 -> 84000 | H206: 0 | I206: 84000 | L206: 0 | O206: 0 | R206: 0 | S206: 0 | T206: 0 | U206: 0
E207: 613500 | F207: Izdaci za usluge prijevoza i goriva | G207: =Godišnji!G206 -> 54000 | H207: 0 | I207: 54000 | L207: 0 | O207: 0 | R207: 0 | S207: 0 | T207: 0 | U207: 0
E208: 613600 | F208: Unajmljivanje imovine, opreme i nemat.imovine | G208: =Godišnji!G207 -> 0 | H208: 0 | I208: 0 | L208: 0 | O208: 0 | R208: 0 | S208: 0 | T208: 0 | U208: 0
... 696 more rows

Sheet Mjesecni
F1: ="PRIJEDLOG MJESEČNOG OPERATIVNOG PLANA RASHODA I IZDATAKA ZA "&E5&" 2018. GODINE" -> PRIJEDLOG MJESEČNOG OPERATIVNOG PLANA RASHODA I IZDATAKA ZA 12. mjesec 2018. GODINE
G2: =E4 -> 23010001
A3: Proračunski korisnik: | E3: =INDEX(Lista!A:B,MATCH($E$4,Lista!A:A,0),2) -> UPRAVA ZA CIVILNU ZAŠTITU
A4: Organizacijski kod: | E4: 23010001
A5: Mjesec: | E5: 12. mjesec
A7: Razdjel | B7: Glava | C7: Potroš. jedinica | E7: Ekonom. kod | F7: Opis | H7: Proračun za 2018. godinu | K7: =INDEX(Lista!I:K,MATCH($E$5,Lista!I:I,0),3) -> Prosinac 2018. god.
G8: Rashodi i | H8: Rashodi iz | I8: Ukupni | J8: Rashodi i | K8: Rashodi iz | L8: Ukupni
G9: izdaci iz | H9: namj.sr., | I9: rashodi i | J9: izdaci iz | K9: namj.sr., | L9: rashodi i
G10: proračuna | H10: tek. trans. i don. | I10: izdaci | J10: proračuna | K10: tek. trans. i don. | L10: izdaci
A11: 1 | B11: 2 | C11: 3 | E11: 4 | F11: 5 | G11: 6 | H11: 7 | I11: 8 | J11: 9 | K11: 10 | L11: 11
A12: 10 | B12: 01 | C12: 0001 | F12: SKUPŠTINA ŽUPANIJE POSAVSKE
E13: 611000 | F13: Plaće i naknade troškova zaposlenih | G13: =SUM(G14:G16) -> 449460 | H13: =SUM(H14:H16) -> 0 | I13: 449460 | J13: 0 | K13: 0 | L13: 0
E14: 611100 | F14: Bruto plaće i naknade | G14: =Godišnji!G13 -> 370430 | H14: =Godišnji!H13 -> 0 | I14: =SUM(G14:H14) -> 370430 | L14: =SUM(J14:K14) -> 0
E15: 611200 | F15: Naknade troškova zaposlenih | G15: =Godišnji!G14 -> 79030 | H15: =Godišnji!H14 -> 0 | I15: =SUM(G15:H15) -> 79030 | L15: =SUM(J15:K15) -> 0
E16: 611200 | F16: Naknade troškova zaposlenih - volonteri | G16: =Godišnji!G15 -> 0 | H16: =Godišnji!H15 -> 0 | I16: 0 | L16: 0
E17: 612000 | F17: Doprinosi poslodavca | G17: =G18 -> 39650 | H17: =H18 -> 0 | I17: 39650 | J17: 0 | K17: 0 | L17: 0
E18: 612100 | F18: Doprinosi poslodavca | G18: =Godišnji!G17 -> 39650 | H18: =Godišnji!H17 -> 0 | I18: =SUM(G18:H18) -> 39650 | L18: =SUM(J18:K18) -> 0
E19: 613000 | F19: Izdaci za materijal, sitan inventar i usluge | G19: =SUM(G20:G29) -> 278400 | H19: =SUM(H20:H29) -> 0 | I19: 278400 | J19: 0 | K19: 0 | L19: 0
E20: 613100 | F20: Putni troškovi | G20: =Godišnji!G19 -> 6500 | H20: =Godišnji!H19 -> 0 | I20: =SUM(G20:H20) -> 6500 | L20: =SUM(J20:K20) -> 0
E21: 613200 | F21: Izdaci za energiju | G21: =Godišnji!G20 -> 13600 | H21: =Godišnji!H20 -> 0 | I21: 13600 | L21: 0
E22: 613300 | F22: Izdaci za komunikaciju i komunalne usluge | G22: =Godišnji!G21 -> 7300 | H22: =Godišnji!H21 -> 0 | I22: 7300 | L22: 0
E23: 613400 | F23: Nabava materijala i sitnog inventara | G23: =Godišnji!G22 -> 5500 | H23: =Godišnji!H22 -> 0 | I23: 5500 | L23: 0
E24: 613500 | F24: Izdaci za usluge prijevoza i goriva | G24: =Godišnji!G23 -> 10000 | H24: =Godišnji!H23 -> 0 | I24: 10000 | L24: 0
E25: 613600 | F25: Unajmljivanje imovine, opreme i nemat.imovine | G25: =Godišnji!G24 -> 0 | H25: =Godišnji!H24 -> 0 | I25: 0 | L25: 0
E26: 613700 | F26: Izdaci za tekuće održavanje | G26: =Godišnji!G25 -> 8000 | H26: =Godišnji!H25 -> 0 | I26: 8000 | L26: 0
E27: 613800 | F27: Izdaci osiguranja, bank.usluga i usluga PP | G27: =Godišnji!G26 -> 2500 | H27: =Godišnji!H26 -> 0 | I27: 2500 | L27: 0
E28: 613900 | F28: Ugovorene i druge posebne usluge | G28: =Godišnji!G27 -> 225000 | H28: =Godišnji!H27 -> 0 | I28: 225000 | L28: 0
E29: 613900 | F29: Ugovorene i druge posebne usluge - volonteri | G29: =Godišnji!G28 -> 0 | H29: =Godišnji!H28 -> 0 | I29: 0 | L29: 0
E30: 821000 | F30: Izdaci za nabavku stalnih sredstava | G30: =SUM(G31:G32) -> 10000 | H30: =SUM(H31:H32) -> 0 | I30: 10000 | J30: 0 | K30: 0 | L30: 0
E31: 821200 | F31: Nabavka građevina | G31: =Godišnji!G30 -> 5000 | H31: =Godišnji!H30 -> 0 | I31: =SUM(G31:H31) -> 5000 | L31: =SUM(J31:K31) -> 0
E32: 821300 | F32: Nabavka opreme | G32: =Godišnji!G31 -> 5000 | H32: =Godišnji!H31 -> 0 | I32: =SUM(G32:H32) -> 5000 | L32: =SUM(J32:K32) -> 0
F33: Ukupno za korisnika Skupština Županije Posavske | G33: =G13+G17+G19+G30 -> 777510 | H33: =H13+H17+H19+H30 -> 0 | I33: 777510 | J33: 0 | K33: 0 | L33: 0
A35: 10 | B35: 01 | C35: 0002 | F35: STRUČNA SLUŽBA SKUPŠTINE
E36: 611000 | F36: Plaće i naknade troškova zaposlenih | G36: =SUM(G37:G39) -> 57480 | H36: =SUM(H37:H39) -> 0 | I36: 57480 | J36: 0 | K36: 0 | L36: 0
E37: 611100 | F37: Bruto plaće i naknade | G37: =Godišnji!G36 -> 44680 | H37: =Godišnji!H36 -> 0 | I37: =SUM(G37:H37) -> 44680 | L37: =SUM(J37:K37) -> 0
E38: 611200 | F38: Naknade troškova zaposlenih | G38: =Godišnji!G37 -> 12800 | H38: =Godišnji!H37 -> 0 | I38: =SUM(G38:H38) -> 12800 | L38: =SUM(J38:K38) -> 0
E39: 611200 | F39: Naknade troškova zaposlenih - volonteri | G39: =Godišnji!G38 -> 0 | H39: =Godišnji!H38 -> 0 | I39: 0 | L39: 0
E40: 612000 | F40: Doprinosi poslodavca | G40: =G41 -> 5030 | H40: =H41 -> 0 | I40: 5030 | J40: 0 | K40: 0 | L40: 0
E41: 612100 | F41: Doprinosi poslodavca | G41: =Godišnji!G40 -> 5030 | H41: =Godišnji!H40 -> 0 | I41: =SUM(G41:H41) -> 5030 | L41: =SUM(J41:K41) -> 0
E42: 613000 | F42: Izdaci za materijal, sitan inventar i usluge | G42: =SUM(G43:G52) -> 1050 | H42: =SUM(H43:H52) -> 0 | I42: 1050 | J42: 0 | K42: 0 | L42: 0
E43: 613100 | F43: Putni troškovi | G43: =Godišnji!G42 -> 500 | H43: =Godišnji!H42 -> 0 | I43: =SUM(G43:H43) -> 500 | L43: =SUM(J43:K43) -> 0
E44: 613200 | F44: Izdaci za energiju | G44: =Godišnji!G43 -> 0 | H44: =Godišnji!H43 -> 0 | I44: 0 | L44: 0
E45: 613300 | F45: Izdaci za komunikaciju i komunalne usluge | G45: =Godišnji!G44 -> 0 | H45: =Godišnji!H44 -> 0 | I45: 0 | L45: 0
E46: 613400 | F46: Nabava materijala i sitnog inventara | G46: =Godišnji!G45 -> 0 | H46: =Godišnji!H45 -> 0 | I46: 0 | L46: 0
E47: 613500 | F47: Izdaci za usluge prijevoza i goriva | G47: =Godišnji!G46 -> 0 | H47: =Godišnji!H46 -> 0 | I47: 0 | L47: 0
E48: 613600 | F48: Unajmljivanje imovine, opreme i nemat.imovine | G48: =Godišnji!G47 -> 0 | H48: =Godišnji!H47 -> 0 | I48: 0 | L48: 0
E49: 613700 | F49: Izdaci za tekuće održavanje | G49: =Godišnji!G48 -> 0 | H49: =Godišnji!H48 -> 0 | I49: 0 | L49: 0
E50: 613800 | F50: Izdaci osiguranja, bank.usluga i usluga PP | G50: =Godišnji!G49 -> 0 | H50: =Godišnji!H49 -> 0 | I50: 0 | L50: 0
E51: 613900 | F51: Ugovorene i druge posebne usluge | G51: =Godišnji!G50 -> 550 | H51: =Godišnji!H50 -> 0 | I51: 550 | L51: 0
E52: 613900 | F52: Ugovorene i druge posebne usluge - volonteri | G52: =Godišnji!G51 -> 0 | H52: =Godišnji!H51 -> 0 | I52: 0 | L52: 0
E53: 821000 | F53: Izdaci za nabavku stalnih sredstava | G53: =SUM(G54:G55) -> 0 | H53: =SUM(H54:H55) -> 0 | I53: 0 | J53: 0 | K53: 0 | L53: 0
E54: 821200 | F54: Nabavka građevina | G54: =Godišnji!G53 -> 0 | H54: =Godišnji!H53 -> 0 | I54: =SUM(G54:H54) -> 0 | L54: =SUM(J54:K54) -> 0
E55: 821300 | F55: Nabavka opreme | G55: =Godišnji!G54 -> 0 | H55: =Godišnji!H54 -> 0 | I55: =SUM(G55:H55) -> 0 | L55: =SUM(J55:K55) -> 0
F56: Ukupno za korisnika Stručna služba Skupštine | G56: =G36+G40+G42+G53 -> 63560 | H56: =H36+H40+H42+H53 -> 0 | I56: 63560 | J56: 0 | K56: 0 | L56: 0
A58: 11 | B58: 01 | C58: 0001 | F58: VLADA ŽUPANIJE POSAVSKE
E59: 600000 | F59: Rashodi - tekuća pričuva | G59: =SUM(G60:G62) -> 645000 | H59: =SUM(H60:H62) -> 0 | I59: =SUM(I60:I62) -> 645000 | J59: 0 | K59: 0 | L59: 0
E60: 600000 | F60: Tekuća pričuva Vlade | G60: =Godišnji!G59 -> 600000 | H60: =Godišnji!H59 -> 0 | I60: =SUM(G60:H60) -> 600000 | L60: =SUM(J60:K60) -> 0
E61: 600000 | F61: Tekuća pričuva predsjednika Vlade | G61: =Godišnji!G60 -> 30000 | H61: =Godišnji!H60 -> 0 | I61: =SUM(G61:H61) -> 30000 | L61: =SUM(J61:K61) -> 0
E62: 600000 | F62: Tekuća pričuva zamjenika pred.Vlade | G62: =Godišnji!G61 -> 15000 | H62: =Godišnji!H61 -> 0 | I62: 15000 | L62: 0
E63: 611000 | F63: Plaće i naknade troškova zaposlenih | G63: =SUM(G64:G66) -> 355500 | H63: =SUM(H64:H66) -> 0 | I63: =SUM(I64:I66) -> 355500 | J63: 0 | K63: 0 | L63: 0
E64: 611100 | F64: Bruto plaće i naknade | G64: =Godišnji!G63 -> 128000 | H64: =Godišnji!H63 -> 0 | I64: =SUM(G64:H64) -> 128000 | L64: =SUM(J64:K64) -> 0
E65: 611200 | F65: Naknade troškova zaposlenih | G65: =Godišnji!G64 -> 25600 | H65: =Godišnji!H64 -> 0 | I65: =SUM(G65:H65) -> 25600 | L65: =SUM(J65:K65) -> 0
E66: 611200 | F66: Naknade troškova zaposlenih - volonteri | G66: =Godišnji!G65 -> 201900 | H66: =Godišnji!H65 -> 0 | I66: 201900 | L66: 0
E67: 612000 | F67: Doprinosi poslodavca | G67: =G68 -> 13760 | H67: =H68 -> 0 | I67: =I68 -> 13760 | J67: 0 | K67: 0 | L67: 0
E68: 612100 | F68: Doprinosi poslodavca | G68: =Godišnji!G67 -> 13760 | H68: =Godišnji!H67 -> 0 | I68: =SUM(G68:H68) -> 13760 | L68: =SUM(J68:K68) -> 0
E69: 613000 | F69: Izdaci za materijal, sitan inventar i usluge | G69: =SUM(G70:G80) -> 433260 | H69: =SUM(H70:H80) -> 0 | I69: =SUM(I70:I80) -> 433260 | J69: 0 | K69: 0 | L69: 0
E70: 613100 | F70: Putni troškovi | G70: =Godišnji!G69 -> 14000 | H70: =Godišnji!H69 -> 0 | I70: =SUM(G70:H70) -> 14000 | L70: =SUM(J70:K70) -> 0
E71: 613200 | F71: Izdaci za energiju | G71: =Godišnji!G70 -> 0 | H71: =Godišnji!H70 -> 0 | I71: 0 | L71: 0
E72: 613300 | F72: Izdaci za komunikaciju i komunalne usluge | G72: =Godišnji!G71 -> 5500 | H72: =Godišnji!H71 -> 0 | I72: 5500 | L72: 0
E73: 613400 | F73: Nabava materijala i sitnog inventara | G73: =Godišnji!G72 -> 1500 | H73: =Godišnji!H72 -> 0 | I73: 1500 | L73: 0
E74: 613500 | F74: Izdaci za usluge prijevoza i goriva | G74: =Godišnji!G73 -> 1500 | H74: =Godišnji!H73 -> 0 | I74: 1500 | L74: 0
E75: 613600 | F75: Unajmljivanje imovine, opreme i nemat.imovine | G75: =Godišnji!G74 -> 0 | H75: =Godišnji!H74 -> 0 | I75: 0 | L75: 0
E76: 613700 | F76: Izdaci za tekuće održavanje | G76: =Godišnji!G75 -> 7000 | H76: =Godišnji!H75 -> 0 | I76: 7000 | L76: 0
E77: 613800 | F77: Izdaci osiguranja, bank.usluga i usluga PP | G77: =Godišnji!G76 -> 3460 | H77: =Godišnji!H76 -> 0 | I77: 3460 | L77: 0
E78: 613900 | F78: Ugovorene i druge posebne usluge | G78: =Godišnji!G77 -> 162100 | H78: =Godišnji!H77 -> 0 | I78: 162100 | L78: 0
E79: 613900 | F79: Agencija za državnu službu | G79: =Godišnji!G78 -> 29500 | H79: =Godišnji!H78 -> 0 | I79: 29500 | L79: 0
E80: 613900 | F80: Ugovorene i druge posebne usluge - volonteri | G80: =Godišnji!G79 -> 208700 | H80: =Godišnji!H79 -> 0 | I80: 208700 | L80: 0
E81: 614000 | F81: Tekući grantovi i drugi tekući rashodi | G81: =SUM(G82:G92) -> 855000 | H81: =SUM(H82:H92) -> 0 | I81: =SUM(I82:I92) -> 855000 | J81: =SUM(J82:J92) -> 0 | K81: 0 | L81: =SUM(L82:L92) -> 0
E82: 614100 | F82: Grant za sanaciju teta uzrokovanih poplavom | G82: =Godišnji!G81 -> 100000 | H82: =Godišnji!H81 -> 0 | I82: =SUM(G82:H82) -> 100000 | L82: =SUM(J82:K82) -> 0
E83: 614100 | F83: Grant za Sveučilište u Mostaru | G83: =Godišnji!G82 -> 200000 | H83: =Godišnji!H82 -> 0 | I83: 200000 | L83: 0
E84: 614200 | F84: Grant za sufinanc.nabavke udžbenika učenicima | G84: =Godišnji!G83 -> 150000 | H84: =Godišnji!H83 -> 0 | I84: 150000 | L84: 0
E85: 614300 | F85: Grantovi nepro.organizacijama i udrugama građana | G85: =Godišnji!G84 -> 70000 | H85: =Godišnji!H84 -> 0 | I85: 70000 | L85: 0
E86: 614300 | F86: Grant za Crveni križ Županije Posavske | G86: =Godišnji!G85 -> 35000 | H86: =Godišnji!H85 -> 0 | I86: 35000 | L86: 0
E87: 614300 | F87: Grant za Kuću nade Odžak | G87: =Godišnji!G86 -> 40000 | H87: =Godišnji!H86 -> 0 | I87: 40000 | L87: 0
E88: 614300 | F88: Grant za udr.roditelja djece s pos.potrebama Orašje | G88: =Godišnji!G87 -> 40000 | H88: =Godišnji!H87 -> 0 | I88: 40000 | L88: 0
E89: 614300 | F89: Grant za udr.roditelja djce s pos.potr.Angelus Domalj. | G89: =Godišnji!G88 -> 15000 | H89: =Godišnji!H88 -> 0 | I89: 15000 | L89: 0
E90: 614300 | F90: Grant za Gospodarsku komoru ŽP | G90: =Godišnji!G89 -> 30000 | H90: =Godišnji!H89 -> 0 | I90: 30000 | L90: 0
E91: 614300 | F91: Grant za Obrtničku komoru ŽP | G91: =Godišnji!G90 -> 15000 | H91: =Godišnji!H90 -> 0 | I91: =SUM(G91:H91) -> 15000 | L91: =SUM(J91:K91) -> 0
E92: 614300 | F92: Grantovi političkim strankama | G92: =Godišnji!G91 -> 160000 | H92: =Godišnji!H91 -> 0 | I92: 160000 | L92: 0
E93: 615000 | F93: Kapitalni grantovi | G93: =G94 -> 700000 | H93: =H94 -> 0 | I93: =I94 -> 700000 | J93: =J94 -> 0 | K93: 0 | L93: =L94 -> 0
E94: 615100 | F94: Kapitalni grantovi | G94: =Godišnji!G93 -> 700000 | H94: =Godišnji!H93 -> 0 | I94: =SUM(G94:H94) -> 700000 | L94: =SUM(J94:K94) -> 0
E95: 821000 | F95: Izdaci za nabavku stalnih sredstava | G95: =SUM(G96:G98) -> 10000 | H95: =SUM(H96:H98) -> 200000 | I95: 210000 | J95: 0 | K95: 0 | L95: 0
E96: 821200 | F96: Nabavka građevina | G96: =Godišnji!G95 -> 0 | H96: =Godišnji!H95 -> 0 | I96: =SUM(G96:H96) -> 0 | L96: =SUM(J96:K96) -> 0
E97: 821300 | F97: Nabavka opreme | G97: =Godišnji!G96 -> 10000 | H97: =Godišnji!H96 -> 0 | I97: =SUM(G97:H97) -> 10000 | L97: =SUM(J97:K97) -> 0
E98: 821500 | F98: Nabavka stalnih sredstava u obliku prava | G98: =Godišnji!G97 -> 0 | H98: =Godišnji!H97 -> 200000 | I98: =SUM(G98:H98) -> 200000 | L98: =SUM(J98:K98) -> 0
F99: Ukupno za korisnika Vlada Županije Posavske | G99: =G59+G63+G67+G69+G81+G93+G95 -> 3012520 | H99: 200000 | I99: 3212520 | J99: 0 | K99: 0 | L99: 0
A101: 11 | B101: 01 | C101: 0002 | F101: URED ZA RASELJENE
E102: 611000 | F102: Plaće i naknade troškova zaposlenih | G102: =SUM(G103:G105) -> 55690 | H102: =SUM(H103:H105) -> 0 | I102: 55690 | J102: 0 | K102: 0 | L102: 0
E103: 611100 | F103: Bruto plaće i naknade | G103: =Godišnji!G102 -> 46450 | H103: =Godišnji!H102 -> 0 | I103: =SUM(G103:H103) -> 46450 | L103: =SUM(J103:K103) -> 0
E104: 611200 | F104: Naknade troškova zaposlenih | G104: =Godišnji!G103 -> 9240 | H104: =Godišnji!H103 -> 0 | I104: =SUM(G104:H104) -> 9240 | L104: =SUM(J104:K104) -> 0
E105: 611200 | F105: Naknade troškova zaposlenih - volonteri | G105: =Godišnji!G104 -> 0 | H105: =Godišnji!H104 -> 0 | I105: 0 | L105: 0
E106: 612000 | F106: Doprinosi poslodavca | G106: =G107 -> 6350 | H106: =H107 -> 0 | I106: 6350 | J106: 0 | K106: 0 | L106: 0
E107: 612100 | F107: Doprinosi poslodavca | G107: =Godišnji!G106 -> 6350 | H107: =Godišnji!H106 -> 0 | I107: =SUM(G107:H107) -> 6350 | L107: =SUM(J107:K107) -> 0
E108: 613000 | F108: Izdaci za materijal, sitan inventar i usluge | G108: =SUM(G109:G118) -> 4000 | H108: =SUM(H109:H118) -> 0 | I108: 4000 | J108: 0 | K108: 0 | L108: 0
E109: 613100 | F109: Putni troškovi | G109: =Godišnji!G108 -> 500 | H109: =Godišnji!H108 -> 0 | I109: =SUM(G109:H109) -> 500 | L109: =SUM(J109:K109) -> 0
E110: 613200 | F110: Izdaci za energiju | G110: =Godišnji!G109 -> 0 | H110: =Godišnji!H109 -> 0 | I110: 0 | L110: 0
E111: 613300 | F111: Izdaci za komunikaciju i komunalne usluge | G111: =Godišnji!G110 -> 1100 | H111: =Godišnji!H110 -> 0 | I111: 1100 | L111: 0
E112: 613400 | F112: Nabava materijala i sitnog inventara | G112: =Godišnji!G111 -> 0 | H112: =Godišnji!H111 -> 0 | I112: 0 | L112: 0
E113: 613500 | F113: Izdaci za usluge prijevoza i goriva | G113: =Godišnji!G112 -> 0 | H113: =Godišnji!H112 -> 0 | I113: 0 | L113: 0
E114: 613600 | F114: Unajmljivanje imovine, opreme i nemat.imovine | G114: =Godišnji!G113 -> 0 | H114: =Godišnji!H113 -> 0 | I114: 0 | L114: 0
E115: 613700 | F115: Izdaci za tekuće održavanje | G115: =Godišnji!G114 -> 400 | H115: =Godišnji!H114 -> 0 | I115: 400 | L115: 0
E116: 613800 | F116: Izdaci osiguranja, bank.usluga i usluga PP | G116: =Godišnji!G115 -> 0 | H116: =Godišnji!H115 -> 0 | I116: 0 | L116: 0
E117: 613900 | F117: Ugovorene i druge posebne usluge | G117: =Godišnji!G116 -> 2000 | H117: =Godišnji!H116 -> 0 | I117: 2000 | L117: 0
E118: 613900 | F118: Ugovorene i druge posebne usluge - volonteri | G118: =Godišnji!G117 -> 0 | H118: =Godišnji!H117 -> 0 | I118: 0 | L118: 0
E119: 614000 | F119: Tekući grantovi i drugi tekući rashodi | G119: =G120 -> 20000 | H119: 0 | I119: 20000 | J119: 0 | K119: 0 | L119: 0
E120: 614200 | F120: Grantovi za povratak raseljenih osoba | G120: =Godišnji!G119 -> 20000 | H120: =Godišnji!H119 -> 0 | I120: =SUM(G120:H120) -> 20000 | L120: =SUM(J120:K120) -> 0
E121: 821000 | F121: Izdaci za nabavku stalnih sredstava | G121: =SUM(G122:G123) -> 1000 | H121: =SUM(H122:H123) -> 0 | I121: 1000 | J121: 0 | K121: 0 | L121: 0
E122: 821200 | F122: Nabavka građevina | G122: =Godišnji!G121 -> 0 | H122: =Godišnji!H121 -> 0 | I122: =SUM(G122:H122) -> 0 | L122: =SUM(J122:K122) -> 0
E123: 821300 | F123: Nabavka opreme | G123: =Godišnji!G122 -> 1000 | H123: =Godišnji!H122 -> 0 | I123: =SUM(G123:H123) -> 1000 | L123: =SUM(J123:K123) -> 0
F124: Ukupno za korisnika Ured za raseljene | G124: =G102+G106+G108+G119+G121 -> 87040 | H124: =H102+H106+H108+H119+H121 -> 0 | I124: 87040 | J124: 0 | K124: 0 | L124: 0
A126: 11 | B126: 01 | C126: 0003 | F126: URED ZA ZAKONODAVSTVO
E127: 611000 | F127: Plaće i naknade troškova zaposlenih | G127: =SUM(G128:G130) -> 47610 | H127: =SUM(H128:H130) -> 0 | I127: 47610 | J127: 0 | K127: 0 | L127: 0
E128: 611100 | F128: Bruto plaće i naknade | G128: =Godišnji!G127 -> 42300 | H128: =Godišnji!H127 -> 0 | I128: =SUM(G128:H128) -> 42300 | L128: =SUM(J128:K128) -> 0
E129: 611200 | F129: Naknade troškova zaposlenih | G129: =Godišnji!G128 -> 5310 | H129: =Godišnji!H128 -> 0 | I129: =SUM(G129:H129) -> 5310 | L129: =SUM(J129:K129) -> 0
E130: 611200 | F130: Naknade troškova zaposlenih - volonteri | G130: =Godišnji!G129 -> 0 | H130: =Godišnji!H129 -> 0 | I130: 0 | L130: 0
E131: 612000 | F131: Doprinosi poslodavca | G131: =G132 -> 4660 | H131: =H132 -> 0 | I131: 4660 | J131: 0 | K131: 0 | L131: 0
E132: 612100 | F132: Doprinosi poslodavca | G132: =Godišnji!G131 -> 4660 | H132: =Godišnji!H131 -> 0 | I132: =SUM(G132:H132) -> 4660 | L132: =SUM(J132:K132) -> 0
E133: 613000 | F133: Izdaci za materijal, sitan inventar i usluge | G133: =SUM(G134:G143) -> 8300 | H133: =SUM(H134:H143) -> 0 | I133: 8300 | J133: 0 | K133: 0 | L133: 0
E134: 613100 | F134: Putni troškovi | G134: =Godišnji!G133 -> 300 | H134: =Godišnji!H133 -> 0 | I134: =SUM(G134:H134) -> 300 | L134: =SUM(J134:K134) -> 0
E135: 613200 | F135: Izdaci za energiju | G135: =Godišnji!G134 -> 0 | H135: =Godišnji!H134 -> 0 | I135: 0 | L135: 0
E136: 613300 | F136: Izdaci za komunikaciju i komunalne usluge | G136: =Godišnji!G135 -> 0 | H136: =Godišnji!H135 -> 0 | I136: 0 | L136: 0
E137: 613400 | F137: Nabava materijala i sitnog inventara | G137: =Godišnji!G136 -> 0 | H137: =Godišnji!H136 -> 0 | I137: 0 | L137: 0
E138: 613500 | F138: Izdaci za usluge prijevoza i goriva | G138: =Godišnji!G137 -> 0 | H138: =Godišnji!H137 -> 0 | I138: 0 | L138: 0
E139: 613600 | F139: Unajmljivanje imovine, opreme i nemat.imovine | G139: =Godišnji!G138 -> 0 | H139: =Godišnji!H138 -> 0 | I139: 0 | L139: 0
E140: 613700 | F140: Izdaci za tekuće održavanje | G140: =Godišnji!G139 -> 0 | H140: =Godišnji!H139 -> 0 | I140: 0 | L140: 0
E141: 613800 | F141: Izdaci osiguranja, bank.usluga i usluga PP | G141: =Godišnji!G140 -> 0 | H141: =Godišnji!H140 -> 0 | I141: 0 | L141: 0
E142: 613900 | F142: Ugovorene i druge posebne usluge | G142: =Godišnji!G141 -> 8000 | H142: =Godišnji!H141 -> 0 | I142: 8000 | L142: 0
E143: 613900 | F143: Ugovorene i druge posebne usluge - volonteri | G143: =Godišnji!G142 -> 0 | H143: =Godišnji!H142 -> 0 | I143: 0 | L143: 0
E144: 821000 | F144: Izdaci za nabavku stalnih sredstava | G144: =SUM(G145:G146) -> 1500 | H144: =SUM(H145:H146) -> 0 | I144: 1500 | J144: 0 | K144: 0 | L144: 0
E145: 821200 | F145: Nabavka građevina | G145: =Godišnji!G144 -> 0 | H145: =Godišnji!H144 -> 0 | I145: =SUM(G145:H145) -> 0 | L145: =SUM(J145:K145) -> 0
E146: 821300 | F146: Nabavka opreme | G146: =Godišnji!G145 -> 1500 | H146: =Godišnji!H145 -> 0 | I146: =SUM(G146:H146) -> 1500 | L146: =SUM(J146:K146) -> 0
F147: Ukupno za korisnika Ured za zakonodavstvo | G147: =G127+G131+G133+G144 -> 62070 | H147: =H127+H131+H133+H144 -> 0 | I147: 62070 | J147: 0 | K147: 0 | L147: 0
A149: 11 | B149: 01 | C149: 0004 | F149: SLUŽBA ZA ODNOSE S JAVNOŠĆU
E150: 611000 | F150: Plaće i naknade troškova zaposlenih | G150: =SUM(G151:G153) -> 75970 | H150: =SUM(H151:H153) -> 0 | I150: 75970 | J150: 0 | K150: 0 | L150: 0
E151: 611100 | F151: Bruto plaće i naknade | G151: =Godišnji!G150 -> 64730 | H151: =Godišnji!H150 -> 0 | I151: =SUM(G151:H151) -> 64730 | L151: =SUM(J151:K151) -> 0
E152: 611200 | F152: Naknade troškova zaposlenih | G152: =Godišnji!G151 -> 11240 | H152: =Godišnji!H151 -> 0 | I152: =SUM(G152:H152) -> 11240 | L152: =SUM(J152:K152) -> 0
E153: 611200 | F153: Naknade troškova zaposlenih - volonteri | G153: =Godišnji!G152 -> 0 | H153: =Godišnji!H152 -> 0 | I153: 0 | L153: 0
E154: 612000 | F154: Doprinosi poslodavca | G154: =G155 -> 7000 | H154: =H155 -> 0 | I154: 7000 | J154: 0 | K154: 0 | L154: 0
E155: 612100 | F155: Doprinosi poslodavca | G155: =Godišnji!G154 -> 7000 | H155: =Godišnji!H154 -> 0 | I155: =SUM(G155:H155) -> 7000 | L155: =SUM(J155:K155) -> 0
E156: 613000 | F156: Izdaci za materijal, sitan inventar i usluge | G156: =SUM(G157:G166) -> 5900 | H156: =SUM(H157:H166) -> 0 | I156: 5900 | J156: 0 | K156: 0 | L156: 0
E157: 613100 | F157: Putni troškovi | G157: =Godišnji!G156 -> 1000 | H157: =Godišnji!H156 -> 0 | I157: =SUM(G157:H157) -> 1000 | L157: =SUM(J157:K157) -> 0
E158: 613200 | F158: Izdaci za energiju | G158: =Godišnji!G157 -> 0 | H158: =Godišnji!H157 -> 0 | I158: 0 | L158: 0
E159: 613300 | F159: Izdaci za komunikaciju i komunalne usluge | G159: =Godišnji!G158 -> 2500 | H159: =Godišnji!H158 -> 0 | I159: 2500 | L159: 0
E160: 613400 | F160: Nabava materijala i sitnog inventara | G160: =Godišnji!G159 -> 500 | H160: =Godišnji!H159 -> 0 | I160: 500 | L160: 0
E161: 613500 | F161: Izdaci za usluge prijevoza i goriva | G161: =Godišnji!G160 -> 0 | H161: =Godišnji!H160 -> 0 | I161: 0 | L161: 0
E162: 613600 | F162: Unajmljivanje imovine, opreme i nemat.imovine | G162: =Godišnji!G161 -> 0 | H162: =Godišnji!H161 -> 0 | I162: 0 | L162: 0
E163: 613700 | F163: Izdaci za tekuće održavanje | G163: =Godišnji!G162 -> 400 | H163: =Godišnji!H162 -> 0 | I163: 400 | L163: 0
E164: 613800 | F164: Izdaci osiguranja, bank.usluga i usluga PP | G164: =Godišnji!G163 -> 0 | H164: =Godišnji!H163 -> 0 | I164: 0 | L164: 0
E165: 613900 | F165: Ugovorene i druge posebne usluge | G165: =Godišnji!G164 -> 1500 | H165: =Godišnji!H164 -> 0 | I165: 1500 | L165: 0
E166: 613900 | F166: Ugovorene i druge posebne usluge - volonteri | G166: =Godišnji!G165 -> 0 | H166: =Godišnji!H165 -> 0 | I166: 0 | L166: 0
E167: 821000 | F167: Izdaci za nabavku stalnih sredstava | G167: =SUM(G168:G169) -> 1500 | H167: =SUM(H168:H169) -> 0 | I167: 1500 | J167: 0 | K167: 0 | L167: 0
E168: 821200 | F168: Nabavka građevina | G168: =Godišnji!G167 -> 0 | H168: =Godišnji!H167 -> 0 | I168: =SUM(G168:H168) -> 0 | L168: =SUM(J168:K168) -> 0
E169: 821300 | F169: Nabavka opreme | G169: =Godišnji!G168 -> 1500 | H169: =Godišnji!H168 -> 0 | I169: =SUM(G169:H169) -> 1500 | L169: =SUM(J169:K169) -> 0
F170: Ukupno za korisnika Služba za odnose s javnošću | G170: =G150+G154+G156+G167 -> 90370 | H170: =H150+H154+H156+H167 -> 0 | I170: 90370 | J170: 0 | K170: 0 | L170: 0
A172: 11 | B172: 01 | C172: 0005 | F172: URED ZA RAZVOJ I EUROPSKE INTEGRACIJE
E173: 611000 | F173: Plaće i naknade troškova zaposlenih | G173: =SUM(G174:G176) -> 158190 | H173: =SUM(H174:H176) -> 0 | I173: 158190 | J173: 0 | K173: 0 | L173: 0
E174: 611100 | F174: Bruto plaće i naknade | G174: =Godišnji!G173 -> 126850 | H174: =Godišnji!H173 -> 0 | I174: =SUM(G174:H174) -> 126850 | L174: =SUM(J174:K174) -> 0
E175: 611200 | F175: Naknade troškova zaposlenih | G175: =Godišnji!G174 -> 31340 | H175: =Godišnji!H174 -> 0 | I175: =SUM(G175:H175) -> 31340 | L175: =SUM(J175:K175) -> 0
E176: 611200 | F176: Naknade troškova zaposlenih - volonteri | G176: =Godišnji!G175 -> 0 | H176: =Godišnji!H175 -> 0 | I176: 0 | L176: 0
E177: 612000 | F177: Doprinosi poslodavca | G177: =G178 -> 14010 | H177: =H178 -> 0 | I177: 14010 | J177: 0 | K177: 0 | L177: 0
E178: 612100 | F178: Doprinosi poslodavca | G178: =Godišnji!G177 -> 14010 | H178: =Godišnji!H177 -> 0 | I178: =SUM(G178:H178) -> 14010 | L178: =SUM(J178:K178) -> 0
E179: 613000 | F179: Izdaci za materijal, sitan inventar i usluge | G179: =SUM(G180:G189) -> 10400 | H179: =SUM(H180:H189) -> 0 | I179: 10400 | J179: 0 | K179: 0 | L179: 0
E180: 613100 | F180: Putni troškovi | G180: =Godišnji!G179 -> 5000 | H180: =Godišnji!H179 -> 0 | I180: =SUM(G180:H180) -> 5000 | L180: =SUM(J180:K180) -> 0
E181: 613200 | F181: Izdaci za energiju | G181: =Godišnji!G180 -> 0 | H181: =Godišnji!H180 -> 0 | I181: 0 | L181: 0
E182: 613300 | F182: Izdaci za komunikaciju i komunalne usluge | G182: =Godišnji!G181 -> 1200 | H182: =Godišnji!H181 -> 0 | I182: 1200 | L182: 0
E183: 613400 | F183: Nabava materijala i sitnog inventara | G183: =Godišnji!G182 -> 1000 | H183: =Godišnji!H182 -> 0 | I183: 1000 | L183: 0
E184: 613500 | F184: Izdaci za usluge prijevoza i goriva | G184: =Godišnji!G183 -> 0 | H184: =Godišnji!H183 -> 0 | I184: 0 | L184: 0
E185: 613600 | F185: Unajmljivanje imovine, opreme i nemat.imovine | G185: =Godišnji!G184 -> 0 | H185: =Godišnji!H184 -> 0 | I185: 0 | L185: 0
E186: 613700 | F186: Izdaci za tekuće održavanje | G186: =Godišnji!G185 -> 700 | H186: =Godišnji!H185 -> 0 | I186: 700 | L186: 0
E187: 613800 | F187: Izdaci osiguranja, bank.usluga i usluga PP | G187: =Godišnji!G186 -> 0 | H187: =Godišnji!H186 -> 0 | I187: 0 | L187: 0
E188: 613900 | F188: Ugovorene i druge posebne usluge | G188: =Godišnji!G187 -> 2500 | H188: =Godišnji!H187 -> 0 | I188: 2500 | L188: 0
E189: 613900 | F189: Ugovorene i druge posebne usluge - volonteri | G189: =Godišnji!G188 -> 0 | H189: =Godišnji!H188 -> 0 | I189: 0 | L189: 0
E190: 821000 | F190: Izdaci za nabavku stalnih sredstava | G190: =SUM(G191:G192) -> 7000 | H190: =SUM(H191:H192) -> 0 | I190: 7000 | J190: 0 | K190: 0 | L190: 0
E191: 821200 | F191: Nabavka građevina | G191: =Godišnji!G190 -> 0 | H191: =Godišnji!H190 -> 0 | I191: =SUM(G191:H191) -> 0 | L191: =SUM(J191:K191) -> 0
E192: 821300 | F192: Nabavka opreme | G192: =Godišnji!G191 -> 7000 | H192: =Godišnji!H191 -> 0 | I192: =SUM(G192:H192) -> 7000 | L192: =SUM(J192:K192) -> 0
F193: Ukupno za korisnika Ured za gospodarski razvoj ŽP | G193: =G173+G177+G179+G190 -> 189600 | H193: =H173+H177+H179+H190 -> 0 | I193: 189600 | J193: 0 | K193: 0 | L193: 0
A195: 12 | B195: 01 | C195: 0001 | F195: ZAJEDNIČKA SLUŽBA VLADE
E196: 611000 | F196: Plaće i naknade troškova zaposlenih | G196: =SUM(G197:G199) -> 267560 | H196: =SUM(H197:H199) -> 0 | I196: 267560 | J196: 0 | K196: 0 | L196: 0
E197: 611100 | F197: Bruto plaće i naknade | G197: =Godišnji!G196 -> 209740 | H197: =Godišnji!H196 -> 0 | I197: =SUM(G197:H197) -> 209740 | L197: =SUM(J197:K197) -> 0
E198: 611200 | F198: Naknade troškova zaposlenih | G198: =Godišnji!G197 -> 57820 | H198: =Godišnji!H197 -> 0 | I198: =SUM(G198:H198) -> 57820 | L198: =SUM(J198:K198) -> 0
E199: 611200 | F199: Naknade troškova zaposlenih - volonteri | G199: =Godišnji!G198 -> 0 | H199: =Godišnji!H198 -> 0 | I199: 0 | L199: 0
E200: 612000 | F200: Doprinosi poslodavca | G200: =G201 -> 22720 | H200: =H201 -> 0 | I200: 22720 | J200: 0 | K200: 0 | L200: 0
E201: 612100 | F201: Doprinosi poslodavca | G201: =Godišnji!G200 -> 22720 | H201: =Godišnji!H200 -> 0 | I201: =SUM(G201:H201) -> 22720 | L201: =SUM(J201:K201) -> 0
E202: 613000 | F202: Izdaci za materijal, sitan inventar i usluge | G202: =SUM(G203:G212) -> 403500 | H202: =SUM(H203:H212) -> 0 | I202: 403500 | J202: 0 | K202: 0 | L202: 0
E203: 613100 | F203: Putni troškovi | G203: =Godišnji!G202 -> 7000 | H203: =Godišnji!H202 -> 0 | I203: =SUM(G203:H203) -> 7000 | L203: =SUM(J203:K203) -> 0
E204: 613200 | F204: Izdaci za energiju | G204: =Godišnji!G203 -> 104000 | H204: =Godišnji!H203 -> 0 | I204: 104000 | L204: 0
E205: 613300 | F205: Izdaci za komunikaciju i komunalne usluge | G205: =Godišnji!G204 -> 44000 | H205: =Godišnji!H204 -> 0 | I205: 44000 | L205: 0
E206: 613400 | F206: Nabava materijala i sitnog inventara | G206: =Godišnji!G205 -> 84000 | H206: =Godišnji!H205 -> 0 | I206: 84000 | L206: 0
E207: 613500 | F207: Izdaci za usluge prijevoza i goriva | G207: =Godišnji!G206 -> 54000 | H207: =Godišnji!H206 -> 0 | I207: 54000 | L207: 0
E208: 613600 | F208: Unajmljivanje imovine, opreme i nemat.imovine | G208: =Godišnji!G207 -> 0 | H208: =Godišnji!H207 -> 0 | I208: 0 | L208: 0
... 696 more rows
